Cogmind - Beta 11.1 @@@ ROGUE MODE // 2022.05.01 @ 00:42:15 Player: Momo Result: Destroyed 0B10! Performance ------------- Evolutions (9) 4500 Regions Visited (31) 6200 Robots Destroyed (315) 1575 Value Destroyed (18488) 18488 Prototype IDs (280) 5600 Alien Tech Used (15) 3000 Bonus (78737) 78737 TOTAL SCORE: 118100 Bonus ------- Triggered High Security 500 Triggered Max Security 2000 High Alert Combat Kills 5488 Follower Combat Kills 1673 Entered Garrisons 800 Used RIF Installer 2000 Network Hubs Disabled 200 Aligned with FarCom 300 Met Zhirov 300 Built Enhanced Grunts 300 A7 Reached Mainframe 300 Met R17 at Cetus 500 Read Decrypted Archives 300 Used Core Reset Matrix 3000 Hacked Protovariant 500 Met R17 at Research 2000 Met Sigix 2000 Integrated Exoskeleton 5000 Recovered Sigix Corpse 2000 Escaped with Sigix 10000 Destroyed MAIN.C Guards 500 Met MAIN.C 5000 Destroyed MAIN.C Shell 5000 Destroyed MAIN.C 10000 Met Architect 300 Destroyed A8 300 Destroyed A6 400 Destroyed A5 500 Destroyed A4 700 Destroyed A2 1000 Destroyed Architect 15000 Win 3000 Friendly Fire -2124 Cogmind --------- Core Integrity 200/1600 Matter 415/425 Energy 248/250 System Corruption 5% Temperature Cool (0) Movement Walking (30) Location Tau Ceti IV Orbit Parts ------- > --- POWER (2) -------- Micro Antimatter Reactor > --- PROPULSION (3) --- Sigix Exoskeleton > --- UTILITY (3) ------ Experimental Targeting Computer Experimental Core Analyzer > --- WEAPON (4) ------- Sigix Shearcannon Sigix Shearcannon > --- INVENTORY (5) ---- Sigix Containment Pod Sigix Containment Pod Sigix Corpse Peak State ------------ > --- POWER ------------ Improved Quantum Reactor > --- PROPULSION ------- Sigix Exoskeleton > --- UTILITY ---------- Lightpack 2.0 > --- WEAPON ----------- Sigix Shearcannon Sigix Shearcannon > --- INVENTORY -------- 2N-1CE's Frost Array Experimental Targeting Computer Experimental Target Analyzer Experimental Target Analyzer Improved Armor Integrity Analyzer System Mapper Transdimensional Reconstructor Transdimensional Reconstructor Transdimensional Reconstructor Integrity Redistributor Subatomic Replicator Terrabomb Terrabomb Advanced Remote Datajack Sigix Containment Pod [Rating: 267] Favorites ----------- Power Ion Engine Engine Ion Engine Power Core Light Nuclear Core Reactor Antimatter Reactor Propulsion Improved Antigrav System Treads Light Treads Leg Flexi-carbon Leg Wheel Compact Wheel Hover Unit Improved Antigrav System Flight Unit Makeshift Flight Unit Utility Lightpack 2.0 Device Advanced Transmission Jammer Storage Lightpack 2.0 Processor Advanced Targeting Computer Hackware Hacking Suite Protection Centrium Medium Armor Plating Weapon Enhanced Nova Cannon Energy Gun Heavy EM Pulse Gun Energy Cannon Enhanced Nova Cannon Ballistic Gun Assault Rifle Ballistic Cannon Magnetic Acceleration Cannon Launcher Micro-nuke Launcher Special Weapon Improved Remote Datajack Impact Weapon Core Stripper Slashing Weapon Power Sword Build | -11 -10 -10 -10 -9 -8 -8 -8 -7 -7 -7 -7 -6 -6 -5 -5 -5 -5 -4 -4 -4 -4 -4 -4 -3 -3 -2 -2 -2 -1 -1 -1 ------- Run | Scr Mat Min Exi Min Mat Gar Sto Fac Gar Fac Gar Fac Gar Fac Upp Upp War Pro Fac Ext Cet Arc Hub Res Qua Res Tes Sec Acc Com Ac0 Slots Evolved 18 | . . . . . 4 . . 2 . . . 2 . 2 . . . . 2 . . . . 2 . 2 . . 2 . . Power 1 | . . . . . . . . . . . . . . . . . . . . . . . . . . 1 . . . . . Propulsion 3 | . . . . . 2 . . . . . . . . . . . . . . . . . . . . 1 . . . . . Utility 11 | . . . . . 2 . . 2 . . . 2 . 2 . . . . 2 . . . . 1 . . . . . . . Weapon 3 | . . . . . . . . . . . . . . . . . . . . . . . . 1 . . . . 2 . . Parts Attached 301 | 6 3 1 18 1 8 . 15 3 10 2 14 5 16 16 5 2 1 . 18 12 2 . 4 18 7 14 37 39 2 19 3 Power 25 | 1 . . 2 . . . 2 . 1 . 2 . 2 . . 1 . . 1 1 . . . . 1 1 3 2 . 4 1 Engine 8 | 1 . . 2 . . . 1 . . . . . 2 . . 1 . . . . . . . . . . . . . 1 . Core 4 | . . . . . . . 1 . 1 . 2 . . . . . . . . . . . . . . . . . . . . Reactor 13 | . . . . . . . . . . . . . . . . . . . 1 1 . . . . 1 1 3 2 . 3 1 Propulsion 58 | 2 . . 3 . 3 . 6 1 2 1 3 1 7 2 1 1 . . 2 4 1 . 2 10 1 2 3 . . . . Treads 6 | 2 . . 1 . . . . . . . . . . . . . . . . . . . . 1 . . 2 . . . . Leg 24 | . . . 2 . . . 2 . 2 . 3 . 5 . . . . . . 4 1 . 1 4 . . . . . . . Wheel 4 | . . . . . . . 2 . . 1 . 1 . . . . . . . . . . . . . . . . . . . Hover 17 | . . . . . 3 . . 1 . . . . 1 1 . 1 . . 2 . . . 1 4 . 2 1 . . . . Flight 7 | . . . . . . . 2 . . . . . 1 1 1 . . . . . . . . 1 1 . . . . . . Utility 126 | 1 2 . 4 . 3 . 1 2 2 1 3 4 2 5 3 . . . 10 4 1 . 2 7 2 8 18 27 . 12 2 Device 81 | . . . 2 . . . . 2 1 . 1 3 . 1 2 . . . 6 1 . . 1 6 1 6 16 23 . 7 2 Storage 7 | 1 1 . . . . . . . . . . . . 1 . . . . . . . . . . . 1 1 2 . . . Processor 16 | . . . . . 2 . . . . . 1 . 2 1 1 . . . 1 2 . . . . . 1 1 . . 4 . Hackware 7 | . . . . . . . . . 1 . . 1 . 2 . . . . 2 . . . . . . . . . . 1 . Protection 15 | . 1 . 2 . 1 . 1 . . 1 1 . . . . . . . 1 1 1 . 1 1 1 . . 2 . . . Artifact . | . . . . . . . . . . . . . . . . . . . . . . . . . . . . . . . . Weapon 92 | 2 1 1 9 1 2 . 6 . 5 . 6 . 5 9 1 . 1 . 5 3 . . . 1 3 3 13 10 2 3 . Energy Gun 8 | 1 . . 4 . . . 1 . 1 . . . . . . . 1 . . . . . . . . . . . . . . Energy Cannon 21 | . . . . . . . . . . . . . . . . . . . . . . . . . . 2 9 6 2 2 . Ballistic Gun 21 | 1 1 . 4 . 2 . 3 . 4 . 3 . . 1 . . . . 2 . . . . . . . . . . . . Ballistic Cannon 15 | . . . . . . . . . . . 2 . 3 3 . . . . 2 2 . . . 1 . . 2 . . . . Launcher 19 | . . 1 1 1 . . 2 . . . 1 . 2 4 . . . . . 1 . . . . 1 1 1 2 . 1 . Special Weapon 1 | . . . . . . . . . . . . . . 1 . . . . . . . . . . . . . . . . . Impact Weapon 5 | . . . . . . . . . . . . . . . . . . . . . . . . . 2 . 1 2 . . . Slashing Weapon 2 | . . . . . . . . . . . . . . . 1 . . . 1 . . . . . . . . . . . . Piercing Weapon . | . . . . . . . . . . . . . . . . . . . . . . . . . . . . . . . . Special Melee Weapon . | . . . . . . . . . . . . . . . . . . . . . . . . . . . . . . . . Unidentified Prototypes 48 | . . . 3 . . . 2 1 . . . . . 1 . . . . 2 . 1 . . 1 4 3 15 12 . 3 . Parts Lost 62 | . . . 7 . . . 6 1 3 1 5 2 5 9 . . . 1 4 2 1 1 3 2 1 . 4 2 . 2 . Power 9 | . . . 2 . . . 1 . 1 . 1 . 1 1 . . . 1 . . . . . . . . 1 . . . . Propulsion 28 | . . . 2 . . . 4 1 1 1 2 2 2 2 . . . . 3 2 1 1 2 1 . . 1 . . . . Utility 15 | . . . 2 . . . . . . . 2 . 2 1 . . . . 1 . . . . 1 1 . 1 2 . 2 . Weapon 10 | . . . 1 . . . 1 . 1 . . . . 5 . . . . . . . . 1 . . . 1 . . . . Highest Loss Streak 6 | . . . 4 . . . 5 1 1 1 3 2 3 6 . . . 1 2 2 1 1 2 2 1 . 3 1 . 2 . To Critical Strikes 5 | . . . 3 . . . . . . . . . 1 . . . . . . . . . . . . . . 1 . . . Average Slot Usage (%) 81 | . 99 100 94 100 85 90 90 97 93 98 97 93 98 81 68 80 86 82 84 87 88 89 83 79 75 77 80 67 36 54 56 Engine 3 | . 14 14 13 14 9 9 6 7 3 . . . 4 4 . 5 5 . . . . . . . . . . . . 3 . Reactor 2 | . . . . . . . . . . . . . . . . . . . 4 5 5 5 5 4 4 4 6 4 9 2 8 Treads 4 | . 28 28 17 . . . . . . . . . . . . . . . . . . . . 2 . . 4 7 . . . Leg 6 | . . . 8 28 5 . 2 . 5 15 23 21 19 4 . . . . . 17 20 21 11 8 . . . . 9 9 8 Wheel 1 | . . . . . . . 7 15 15 13 5 . 1 . . . . . . . . . . . . . . . . . . Hover 5 | . . . . . 21 27 9 4 4 . . . 2 9 11 15 17 17 16 1 . . 4 2 13 16 9 3 . . . Flight 1 | . . . . . . . 9 8 . . . . . 4 4 5 5 5 2 . . . . 1 . . . . . . . Device 8 | . . . 4 14 6 . . 13 15 10 5 13 7 . 10 11 11 11 13 7 5 5 5 8 12 11 12 16 . 7 6 Storage 5 | . 14 14 14 14 9 9 9 7 7 7 7 6 6 5 5 5 5 5 5 5 5 5 5 4 4 4 4 4 9 . . Processor 15 | . . . . . 13 18 18 15 15 15 21 20 30 26 17 17 17 17 15 18 26 26 26 23 23 17 20 10 . 11 16 Hackware 5 | . . . . . . . . . . 7 7 10 6 12 11 11 11 11 13 17 10 10 10 9 9 8 4 3 . 1 . Protection 3 | . 13 14 9 . 3 9 9 7 6 4 2 . . . . . . . . 2 5 5 5 3 . 4 3 2 . . . Energy Cannon 3 | . . . . . . . . . . . . . . . . . . . . . . . . . . 3 8 8 9 17 16 Ballistic Gun 4 | . 25 15 14 . 6 18 14 7 10 15 11 . . 1 . . . . 4 2 . . . . . . . . . . . Ballistic Cannon 2 | . . . . . . . . . . . 2 13 11 4 . . . . 1 5 10 10 9 7 4 . . . . . . Launcher 1 | . . 12 5 14 5 . 3 7 2 . . . 1 2 . . . . . 2 . . . . . 3 3 1 . . . Naked Turns . | . . . . . . . . . . . . . . . . . . . . . . . . . . . . . . . . Heaviest Build 122 | 13 32 33 33 31 38 38 42 40 41 39 42 44 47 46 10 23 28 28 40 54 54 54 54 65 52 71 98 122 59 59 59 Greatest Support 155 | 40 40 40 50 50 40 40 40 32 32 32 45 45 69 51 23 35 35 35 45 80 80 80 60 75 50 61 155 155 60 60 60 Greatest Overweight (x) 11 | . . . 1 . . . 11 1 2 2 2 3 3 4 . . . . 1 3 . . 2 2 1 1 2 . . . . Average Overweight (x) . | . . . . . . . . 1 1 1 . . . . . . . . . . . . . . . . . . . . . Largest Inventory Capacity 40 | 8 15 15 15 15 15 15 15 15 15 15 15 15 15 40 40 40 40 40 40 40 40 40 40 40 40 40 40 40 40 40 5 Average Capacity 26 | 6 12 15 15 15 15 15 15 15 15 15 15 15 15 39 40 40 40 40 40 40 40 40 40 40 40 40 40 38 40 5 5 Most Carried 40 | 1 15 15 15 15 15 15 15 15 15 15 15 15 15 17 15 15 15 14 20 20 23 23 25 30 40 40 40 40 19 18 5 Average Carried 19 | . 10 14 12 15 14 15 14 13 14 14 14 14 14 13 12 12 14 14 15 19 21 23 23 22 35 39 38 34 18 4 4 Final Capacity 40 | 8 15 15 15 15 15 15 15 15 15 15 15 15 15 40 40 40 40 40 40 40 40 40 40 40 40 40 40 40 40 5 5 Final Carried 40 | 1 15 15 15 15 15 15 15 13 15 15 15 15 15 16 12 15 14 14 20 20 23 23 25 28 40 40 40 19 18 4 5 Class Distribution -------------------- 30% | Hauler-Mutant 20% | Scavenger-Mutant 16% | Mutant 12% | Alien-Sigix 8% | Hauler-Scout 3% | Hauler-Skirmisher Dominant Class ---------------- Mutant | -10/Materials Mutant | -10/Mines Mutant | -10/Exiles Mutant | -9/Mines Scavenger-Mutant | -8/Materials Scavenger-Mutant | -8/Garrison Scavenger-Mutant | -8/Storage Scavenger-Mutant | -7/Factory Scavenger-Mutant | -7/Garrison Scavenger-Mutant | -7/Factory Scavenger-Mutant | -7/Garrison Scavenger-Mutant | -6/Factory Scavenger-Mutant | -6/Garrison Hauler-Mutant | -5/Factory Hauler-Scout | -5/Upper Caves Hauler-Scout | -5/Upper Caves Hauler-Scout | -5/Warlord Hauler-Scout | -4/Proximity Caves Hauler-Ninja | -4/Factory Hacker-Mutant | -4/Extension Hauler-Mutant | -4/Cetus Hauler-Mutant | -4/Archives Hauler-Mutant | -4/Hub_04(d) Hauler-Mutant | -3/Research Hauler-Mutant | -3/Quarantine Hauler-Scout | -2/Research Hauler-Mutant | -2/Testing Hauler-Mutant | -2/Section 7 Alien-Sigix | -1/Access Alien-Sigix | -1/Command Alien-Sigix | -1/Access_0 Resources | -11 -10 -10 -10 -9 -8 -8 -8 -7 -7 -7 -7 -6 -6 -5 -5 -5 -5 -4 -4 -4 -4 -4 -4 -3 -3 -2 -2 -2 -1 -1 -1 ----------- Run | Scr Mat Min Exi Min Mat Gar Sto Fac Gar Fac Gar Fac Gar Fac Upp Upp War Pro Fac Ext Cet Arc Hub Res Qua Res Tes Sec Acc Com Ac0 Matter Collected 9350 | 191 173 7 520 35 164 67 513 89 178 . 606 94 854 317 146 61 . 37 549 545 247 . 116 411 220 829 791 1138 . 368 84 Remotely . | . . . . . . . . . . . . . . . . . . . . . . . . . . . . . . . . Salvage Created 17783 | . 306 18 52 39 98 97 1607 338 446 73 701 269 417 584 . . . . 598 301 108 . 173 307 204 391 1056 3602 53 4327 1618 Parts 764 | . 25 1 6 . 14 12 90 15 25 4 32 11 17 28 . . . . 17 14 1 . 2 4 10 11 33 101 4 181 106 Haulers Intercepted 15 | . 1 . . . . . 3 1 . . . 1 . . . . . . 4 . . . . 1 . 2 . 2 . . . Recyclers Shooed 5 | . . . . 1 . . . 2 . . . . . . . . . . . . . . . . . . . 2 . . . Parts Field Recycled . | . . . . . . . . . . . . . . . . . . . . . . . . . . . . . . . . Retrieved Matter . | . . . . . . . . . . . . . . . . . . . . . . . . . . . . . . . . Parts Self-Destructed 5 | . . . . . . . . . . . . . . . . 5 . . . . . . . . . . . . . . . Prevented . | . . . . . . . . . . . . . . . . . . . . . . . . . . . . . . . . Kills | -11 -10 -10 -10 -9 -8 -8 -8 -7 -7 -7 -7 -6 -6 -5 -5 -5 -5 -4 -4 -4 -4 -4 -4 -3 -3 -2 -2 -2 -1 -1 -1 ------- Run | Scr Mat Min Exi Min Mat Gar Sto Fac Gar Fac Gar Fac Gar Fac Upp Upp War Pro Fac Ext Cet Arc Hub Res Qua Res Tes Sec Acc Com Ac0 Combat Hostiles Destroyed 251 | . 9 3 3 1 7 8 29 6 10 1 17 4 15 16 . . . . 3 7 3 . 3 2 4 6 9 39 . 30 16 Guns 67 | . 9 1 . . 7 8 15 1 7 1 13 . . 3 . . . . 2 . . . . . . . . . . . . Cannons 113 | . . . . . . . . . . . 3 4 7 4 . . . . 1 4 3 . 3 2 3 1 6 26 . 30 16 AOE 58 | . . 2 3 1 . . 13 5 2 . 1 . 8 9 . . . . . 3 . . . . . 5 1 5 . . . Classes Destroyed 27 | . 6 . 2 . 1 . 4 . 1 . . 1 1 . . . . . . . . . . . . . 1 7 . 3 . Worker 13 | . 2 . . . . . 1 1 . . . . . . . . . . . . . . . . 1 1 2 2 . 3 . Builder 8 | . . . . . 1 . 1 . . . . 2 . . . . . . . . . . . . . . 2 1 1 . . Hauler 15 | . 1 . . . . . 3 1 . . . 1 . . . . . . 4 . . . . 1 . 2 . 2 . . . Recycler 13 | . . . . . . . 1 . . . . . . . . . . . . . . . . 1 . . 1 7 . 3 . Carrier 1 | . . . . . . . . . . . . . . . . . . . . . . . . . . . . 1 . . . Mechanic 1 | . . . . . . . . . . . . . . . . . . . . . . . . . . . . 1 . . . Operator 3 | . 1 . . . . . . . . 1 . . . 1 . . . . . . . . . . . . . . . . . Watcher 9 | . 1 . . . 1 . 1 . . . . 1 . . . . . . . . . . 1 . . 1 2 1 . . . Swarmer 54 | . 8 3 . . 7 8 5 2 4 . 3 . 4 2 . . . . . 3 . . . . . 5 . . . . . Saboteur 2 | . . . . . . . . . . . . . . . . . . . . . . . . . . . . 2 . . . Grunt 81 | . 1 . . 1 . . 13 4 3 . 10 3 9 9 . . . . 1 1 . . . 2 . . . 18 . 6 . Brawler 4 | . . . . . . . 1 . 1 . . . . 1 . . . . . . . . . . . . . 1 . . . Duelist 7 | . . . . . . . 2 . . . 2 . . . . . . . . . . . . . . . . 3 . . . Researcher 1 | . . . . . . . . . . . . . . . . . . . . . . . . . . . . 1 . . . Sentry 21 | . . . . . . . 8 . 1 1 2 . 1 2 . . . . . 2 . . 1 . . 1 . . . 2 . Demolisher 1 | . . . . . . . . . . . . . 1 . . . . . . . . . . . . . . . . . . Specialist 1 | . . . . . . . . . . . . . . . . . . . . . . . . . . . . . . 1 . Hunter 12 | . . . . . . . . . 1 . . . . 2 . . . . . . . . . . . . 3 4 . 2 . Programmer 26 | . . . . . . . . . . . . 1 . . . . . . 2 1 . . 2 . 4 . 5 5 . 6 . Heavy 1 | . . . . . . . . . . . . . . . . . . . . . . . . . . . . . . 1 . Behemoth 1 | . . . . . . . . . . . . . . . . . . . . . . . . . . . . 1 . . . Cetus Guard 3 | . . . . . . . . . . . . . . . . . . . . . 3 . . . . . . . . . . S7 Guard 1 | . . . . . . . . . . . . . . . . . . . . . . . . . . . . 1 . . . M Guard 2 | . . . . . . . . . . . . . . . . . . . . . . . . . . . . . . 2 . M Shell/Atk 4 | . . . . . . . . . . . . . . . . . . . . . . . . . . . . . . 4 . M Shell/Def 2 | . . . . . . . . . . . . . . . . . . . . . . . . . . . . . . 2 . Enhanced Grunt 4 | . . . . . . . . . . . . . . . . . . . . . . . . . . . . . . . 4 Enhanced Sentry 2 | . . . . . . . . . . . . . . . . . . . . . . . . . . . . . . . 2 Enhanced Hunter 4 | . . . . . . . . . . . . . . . . . . . . . . . . . . . . . . . 4 Combat Programmer 2 | . . . . . . . . . . . . . . . . . . . . . . . . . . . . . . 2 . Executioner 2 | . . . . . . . . . . . . . . . . . . . . . . . . . . . . 2 . . . Alpha 7 2 | . . . . . . . . . . . . . . . . . . . . . . . . . . . . 2 . . . Fortress 1 | . . . . . . . . . . . . . . . . . . . . . . . . . . . 1 . . . . Zionite 2 | . . . 2 . . . . . . . . . . . . . . . . . . . . . . . . . . . . Assembled 11 | . . . 5 . . . . . . . . . . . . . . . . . . . . . . . . . 2 4 . Best Kill Streak 12 | . 4 3 3 1 9 8 8 6 4 1 5 5 4 4 . . . . 3 3 2 . 2 3 3 6 7 6 1 12 3 Combat Bots Only 9 | . 3 3 3 1 7 8 8 2 4 1 5 3 4 4 . . . . 2 3 2 . 2 2 2 5 3 5 . 9 3 Max Kills in Single Turn 4 | . 1 2 3 1 1 2 3 2 1 1 1 2 4 4 . . . . 1 2 1 . 1 1 1 3 3 3 1 4 2 Gunslinging 1 | . . . . . . 1 1 . . . . . . . . . . . . . . . . . . . . . . . . Exploded 4 | . . 2 3 1 . . 2 1 1 . 1 . 4 4 . . . . . 2 . . . . . 3 1 2 . . . Melee . | . . . . . . . . . . . . . . . . . . . . . . . . . . . . . . . . Uniques/NPCs Destroyed 12 | . . . 4 . . . . . . . . . . . . . . . . . . . . . . . . . . 2 6 EX-HEX (-10/Exiles) EX-BIN (-10/Exiles) 8R-AWN (-10/Exiles) EX-DEC (-10/Exiles) MAIN.C Shell (-1/Command) MAIN.C (-1/Command) A8 (-1/Access_0) A6 (-1/Access_0) A5 (-1/Access_0) A2 (-1/Access_0) A4 (-1/Access_0) Architect (-1/Access_0) Combat | -11 -10 -10 -10 -9 -8 -8 -8 -7 -7 -7 -7 -6 -6 -5 -5 -5 -5 -4 -4 -4 -4 -4 -4 -3 -3 -2 -2 -2 -1 -1 -1 -------- Run | Scr Mat Min Exi Min Mat Gar Sto Fac Gar Fac Gar Fac Gar Fac Upp Upp War Pro Fac Ext Cet Arc Hub Res Qua Res Tes Sec Acc Com Ac0 Damage Taken 18478 | . 235 32 1033 . 209 137 883 49 272 225 1171 148 1111 1053 . . 67 294 719 264 623 249 268 502 556 27 1809 2502 180 2080 1780 Core 3638 | . 27 8 200 . 13 7 192 13 39 27 177 19 180 171 . . 14 105 64 58 46 83 20 16 116 . 585 145 60 630 623 Absorbed by Shields 1490 | . . . . . . . . . . . . . . . . . . . . . 12 . . . . . 59 1419 . . . Reduced by Siege Mode 203 | . . . . . . . . . . . . . . . . . . . . . . . . . . . . 203 . . . Redirected to Shielding 88 | . . . . . . . . . . . . . . . . . . . . . . . . . . . . 88 . . . Regen/Repaired (Parts) 2490 | . . . . . . . . . . . . 27 . . . . . . . . . . . 67 . . . 2396 . . . Core Remaining (%) 57 | 100 . . . 6 . . 61 . . . 63 . 76 . . . . 71 . . . . 76 . 89 . . 21 . . 12 Volleys Fired 852 | . 51 2 35 4 12 13 60 9 23 16 62 22 43 38 . . 2 1 38 30 14 . 13 11 39 25 50 112 13 65 49 Largest 3 | . 2 1 2 1 2 2 2 2 2 2 2 2 2 2 . . 1 1 2 2 2 . 2 2 1 2 3 3 1 2 2 Hottest 360 | . 60 30 90 45 70 48 59 59 103 60 106 106 106 106 . . 81 81 94 118 118 . 118 122 61 240 289 360 180 360 360 Shots Fired 1359 | . 102 2 64 4 23 26 100 11 32 32 103 35 72 56 . . 2 1 59 44 29 . 24 22 39 27 80 160 13 118 79 Gun 498 | . 102 1 58 3 22 26 80 3 24 32 82 . . 22 . . 2 1 34 6 . . . . . . . . . . . Cannon 777 | . . . . . . . . . . . 19 35 68 25 . . . . 25 36 29 . 24 22 39 24 75 152 13 112 79 Launcher 83 | . . 1 6 1 1 . 20 8 8 . 2 . 4 8 . . . . . 2 . . . . . 3 5 8 . 6 . Special 1 | . . . . . . . . . . . . . . 1 . . . . . . . . . . . . . . . . . Kinetic 781 | . 83 1 54 . 21 26 77 3 17 32 101 35 68 47 . . . . 59 42 29 . 24 22 39 1 . . . . . Thermal 256 | . 19 . . . . . . . 7 . . . . . . . 2 1 . . . . . . . 23 75 127 2 . . Explosive 43 | . . 1 6 1 1 . 1 . . . . . 4 7 . . . . . . . . . . . 3 5 8 . 6 . Electromagnetic 51 | . . . 4 3 1 . 22 8 8 . 2 . . 1 . . . . . 2 . . . . . . . . . . . Slashing 227 | . . . . . . . . . . . . . . . . . . . . . . . . . . . . 25 11 112 79 Robot Hit Streak 31 | . 8 2 9 6 7 4 31 9 13 13 26 14 9 11 . . . . 7 10 8 . 5 2 11 19 6 20 4 23 14 Robot Miss Streak 11 | . 6 . 4 1 6 4 5 . 2 3 2 1 3 3 . . . . 5 5 3 . 3 5 3 1 2 3 4 10 11 Penetration Max 1 | . . . . . . . . . . . . . . . . . . . 1 1 1 . . . . . . 1 . 1 1 Secondary Targets 6 | . . . . . 1 1 1 . . . 3 . . . . . . . . . . . . . . . . . . . . Max Gunslinging Chain 1 | . . . . . 1 1 1 . . . 1 . . . . . . . . . . . . . . . . . . . . Shots Hit Robots 829 | . 55 1 36 3 14 16 68 8 27 22 81 17 42 37 . . . . 27 25 17 . 10 7 13 13 37 106 2 87 58 Core Hits 758 | . 19 3 24 2 9 8 55 11 23 4 35 13 31 35 . . . . 10 14 10 . 6 5 6 15 21 87 3 154 155 Critical Kills 6 | . . . . . . . . . . 1 . . . 1 . . . . . . . . . . . . 1 3 . . . Critical Parts Destroyed 3 | . 1 . . . . . 1 . . . . . . . . . . . 1 . . . . . . . . . . . . Critical Strikes 53 | . 1 . . . . . 1 . . 1 . . 3 2 . . . . 2 4 5 . . 4 2 . 1 8 . 14 5 Meltdown 4 | . . . . . . . . . . . . . . . . . . . . . . . . . . . 1 3 . . . Destroy 5 | . 1 . . . . . 1 . . 1 . . . 1 . . . . 1 . . . . . . . . . . . . Blast 20 | . . . . . . . . . . . . . 3 1 . . . . 1 4 5 . . 4 2 . . . . . . Sever 24 | . . . . . . . . . . . . . . . . . . . . . . . . . . . . 5 . 14 5 Melee Attacks 45 | . . . . . . . . . . . . . . . 1 . . 2 24 . . . . . 2 . 1 15 . . . Kinetic 18 | . . . . . . . . . . . . . . . . . . . . . . . . . 2 . 1 15 . . . Impact . | . . . . . . . . . . . . . . . . . . . . . . . . . . . . . . . . Slashing 27 | . . . . . . . . . . . . . . . 1 . . 2 24 . . . . . . . . . . . . Piercing . | . . . . . . . . . . . . . . . . . . . . . . . . . . . . . . . . Sneak Attacks 6 | . . . . . . . . . . . . . . . . . . . 4 . . . . . . . . 2 . . . Combat Hostiles . | . . . . . . . . . . . . . . . . . . . . . . . . . . . . . . . . Follow-up Attacks . | . . . . . . . . . . . . . . . . . . . . . . . . . . . . . . . . Damage Inflicted 67422 | . 722 145 650 94 391 270 2177 466 884 482 1979 688 1979 2327 . . . . 1256 1128 854 . 544 413 520 1341 2389 9488 325 22045 13865 Guns 5925 | . 722 13 355 31 240 270 1028 41 312 482 1509 . . 275 . . . . 519 128 . . . . . . . . . . . Cannons 51098 | . . . . . . . . . . . 393 688 1066 619 . . . . 183 842 854 . 361 413 482 498 1530 6934 325 22045 13865 Explosions 9610 | . . 132 295 63 151 . 1149 425 572 . 77 . 913 1433 . . . . 111 158 . . 183 . . 843 838 2267 . . . Melee 768 | . . . . . . . . . . . . . . . . . . . 443 . . . . . 38 . . 287 . . . Ramming 21 | . . . . . . . . . . . . . . . . . . . . . . . . . . . 21 . . . . Kinetic 11878 | . 605 13 352 . 228 270 1028 41 202 482 1902 688 1066 894 . . . . 702 970 854 . 361 413 520 . . 287 . . . Thermal 7453 | . 117 . . . 151 . 238 . 220 . . . . 576 . . . . . . . . . . . 498 1530 4123 . . . Explosive 6280 | . . 132 295 63 . . . . . . . . 913 818 . . . . 111 . . . . . . 843 838 2267 . . . Electromagnetic 2301 | . . . 3 31 12 . 911 425 462 . 77 . . 39 . . . . . 158 . . 183 . . . . . . . . Impact . | . . . . . . . . . . . . . . . . . . . . . . . . . . . . . . . . Slashing 39489 | . . . . . . . . . . . . . . . . . . . 443 . . . . . . . . 2811 325 22045 13865 Piercing . | . . . . . . . . . . . . . . . . . . . . . . . . . . . . . . . . Highest Corruption 18 | . . . 5 5 . . 1 . . . . . . . . . . . 4 . 1 1 3 . 5 . 13 18 . 4 5 Average Corruption 7 | . . . 4 5 . . 1 . . . . . . . . . . . 3 . 1 1 1 . 1 . 9 16 . 3 4 Corruption Purged 4 | . . . . . . . . . . . . . . . . . . . 4 . . . . . . . . . . . . Corruption Blocked . | . . . . . . . . . . . . . . . . . . . . . . . . . . . . . . . . Effects 167 | . . . 10 . . . 4 . . . . . . . . . . . 7 . 2 . 2 . 1 . 25 81 . 24 11 Message Errors 45 | . . . 2 . . . 1 . . . . . . . . . . . 2 . . . 1 . 1 . 8 25 . 2 3 Matter Fused 38 | . . . 1 . . . 1 . . . . . . . . . . . 2 . . . 1 . . . 4 17 . 9 3 Heat Flow Errors 16 | . . . 3 . . . . . . . . . . . . . . . . . . . . . . . 1 9 . 3 . Energy Discharges 17 | . . . . . . . . . . . . . . . . . . . . . . . . . . . 5 8 . 3 1 Parts Rejected 3 | . . . . . . . . . . . . . . . . . . . . . . . . . . . . 2 . . 1 Data Loss (minor) 19 | . . . 2 . . . 1 . . . . . . . . . . . . . . . . . . . 4 9 . 1 2 Data Loss (major) 7 | . . . 2 . . . . . . . . . . . . . . . 2 . . . . . . . 1 1 . 1 . Misfires 11 | . . . . . . . . . . . . . . . . . . . 1 . 1 . . . . . 1 5 . 3 . Alerts 5 | . . . . . . . 1 . . . . . . . . . . . . . 1 . . . . . 1 1 . 1 . Misdirections 2 | . . . . . . . . . . . . . . . . . . . . . . . . . . . . 2 . . . Weapon Failures 4 | . . . . . . . . . . . . . . . . . . . . . . . . . . . . 2 . 1 1 Overload Shots . | . . . . . . . . . . . . . . . . . . . . . . . . . . . . . . . . Overflow Damage 1329 | . . . . . 8 . 23 . . . 23 44 37 137 . . . . 37 5 . . 65 . . 64 107 580 25 161 13 Projectiles 708 | . . . . . . . . . . . 20 44 . . . . . . . . . . 10 . . . 96 339 25 161 13 Explosions 584 | . . . . . 8 . 23 . . . 3 . 37 137 . . . . . 5 . . 55 . . 64 11 241 . . . Melee 37 | . . . . . . . . . . . . . . . . . . . 37 . . . . . . . . . . . . Knockbacks 31 | . . . . . . . . . . . 2 2 10 4 . . . . 3 2 1 . 2 2 3 . . . . . . Impact . | . . . . . . . . . . . . . . . . . . . . . . . . . . . . . . . . Kinetic 30 | . . . . . . . . . . . 2 2 10 4 . . . . 2 2 1 . 2 2 3 . . . . . . Secondary 1 | . . . . . . . . . . . . . . . . . . . 1 . . . . . . . . . . . . Self-Inflicted Damage 400 | . . . 30 . 29 . 28 6 . . . . . 26 . . . . 78 . . . 95 . . . 108 . . . . Shots 10 | . . . 1 . 1 . 3 1 . . . . . 1 . . . . 1 . . . 1 . . . 1 . . . . Rammed 1 | . . . . . . . . . . . . . . . . . . . . . . . . . . . 1 . . . . Targets Rammed 1 | . . . . . . . . . . . . . . . . . . . . . . . . . . . 1 . . . . Kicked . | . . . . . . . . . . . . . . . . . . . . . . . . . . . . . . . . Crushed . | . . . . . . . . . . . . . . . . . . . . . . . . . . . . . . . . Highest Temperature 722 | . 120 . 173 14 109 138 107 1 27 59 297 207 142 36 . . 270 46 213 123 243 . 102 117 . 208 722 639 15 103 67 Average Temperature 79 | . 37 . 40 10 58 72 29 1 10 16 59 76 36 21 . . 110 18 50 46 97 . 44 41 . 50 204 148 15 54 30 Received Heat Transfer 2640 | . 48 . 12 . 9 . 351 27 57 66 525 81 190 153 . . . 78 93 57 . . 27 75 21 . 18 362 . 171 219 Effects 25 | . . . . . . . . . . . . . . . . . . . . . . . . . . . 10 15 . . . Shutdowns 6 | . . . . . . . . . . . . . . . . . . . . . . . . . . . 4 2 . . . Energy Bleed 5 | . . . . . . . . . . . . . . . . . . . . . . . . . . . 2 3 . . . Interference 6 | . . . . . . . . . . . . . . . . . . . . . . . . . . . . 6 . . . Matter Decay 2 | . . . . . . . . . . . . . . . . . . . . . . . . . . . 2 . . . . Damage (minor) 1 | . . . . . . . . . . . . . . . . . . . . . . . . . . . . 1 . . . Damage (major) 3 | . . . . . . . . . . . . . . . . . . . . . . . . . . . . 3 . . . Damage (core) 2 | . . . . . . . . . . . . . . . . . . . . . . . . . . . 2 . . . . Siege Activations 8 | . . . . . . . . . . . . . . . . . . . . . . . . . . . . 8 . . . Total Turns 221 | . . . . . . . . . . . . . . . . . . . . . . . . . . . . 221 . . . Longest Duration 70 | . . . . . . . . . . . . . . . . . . . . . . . . . . . . 70 . . . Robots Corrupted 2 | . . . . . . . 1 . 1 . . . . . . . . . . . . . . . . . . . . . . Combat Hostiles 2 | . . . . . . . 1 . 1 . . . . . . . . . . . . . . . . . . . . . . Parts Fried 9 | . . . . . . . 3 2 1 . . . . . . . . . . . . . 3 . . . . . . . . Impact Corruptions . | . . . . . . . . . . . . . . . . . . . . . . . . . . . . . . . . Robots Melted 5 | . . . . . . . . . . . . . . . . . . . . . . . . . . . 2 3 . . . Combat Hostiles 4 | . . . . . . . . . . . . . . . . . . . . . . . . . . . 1 3 . . . Parts Melted 19 | . . . . . 1 . . . . . . . . . . . . . . . . . . . . 3 3 10 . 2 . Heat Transferred 5930 | . 275 . . . 150 . 250 . 400 . . . . 300 . . . . . . . . . . . 444 1145 2966 . . . Parts Sabotaged 1 | . . . . . . . . . . . . . . 1 . . . . . . . . . . . . . . . . . Parts Stolen . | . . . . . . . . . . . . . . . . . . . . . . . . . . . . . . . . Parts Stripped . | . . . . . . . . . . . . . . . . . . . . . . . . . . . . . . . . Power Chain Reactions 8 | . . . . . . . 6 1 1 . . . . . . . . . . . . . . . . . . . . . . Missiles Intercepted . | . . . . . . . . . . . . . . . . . . . . . . . . . . . . . . . . Alert | -11 -10 -10 -10 -9 -8 -8 -8 -7 -7 -7 -7 -6 -6 -5 -5 -5 -5 -4 -4 -4 -4 -4 -4 -3 -3 -2 -2 -2 -1 -1 -1 ------- Run | Scr Mat Min Exi Min Mat Gar Sto Fac Gar Fac Gar Fac Gar Fac Upp Upp War Pro Fac Ext Cet Arc Hub Res Qua Res Tes Sec Acc Com Ac0 Peak Influence 2097 | . 157 175 . 85 430 449 908 563 614 422 756 420 691 967 . . . . 341 355 432 271 478 308 386 511 493 1702 1760 2097 . Initial 1126 | . . 4 . . 33 279 218 413 394 322 295 396 48 362 . . . . . 94 198 172 100 250 4 211 38 193 1100 1126 . Average 389 | . 88 130 . 77 169 361 557 457 552 355 594 304 469 660 . . . . 110 163 316 210 235 164 166 354 294 519 1294 1374 . Maximum Alert Level 5 | . . . . . 2 2 3 2 2 2 3 2 2 3 . . . . 1 1 2 1 2 1 1 2 2 5 5 5 . Low Security (%) 31 | 100 100 100 . 100 60 . . . . . . 14 10 . . . . . 87 66 9 60 62 53 56 10 32 22 . . . Level 1 23 | . . . . . 26 63 27 . 4 81 11 55 25 11 . . . . 12 33 59 40 18 46 43 26 36 19 . . . Level 2 27 | . . . . . 12 36 56 100 95 18 77 29 64 44 . . . . . . 30 . 18 . . 62 30 25 . . . Level 3 7 | . . . . . . . 15 . . . 11 . . 43 . . . . . . . . . . . . . 30 . . . Level 4 2 | . . . . . . . . . . . . . . . . . . . . . . . . . . . . . 81 19 . Level 5 7 | . . . . . . . . . . . . . . . . . . . . . . . . . . . . . . 72 . High Security . | . . . . . . . . . . . . . . . . . . . . . . . . . . . . . . 7 . Max Security . | . . . . . . . . . . . . . . . . . . . . . . . . . . . . 1 18 . . Squads Dispatched 67 | . 2 . . . 2 . 4 1 . . . 2 . 5 . . . . 3 1 . . 1 8 1 1 7 15 6 8 . Investigation 7 | . 1 . . . . . . . . . . 1 . 2 . . . . . . . . . 3 . . . . . . . Extermination 8 | . . . . . . . . . . . . . . . . . . . 1 . . . . . 1 . 2 3 . 1 . Reinforcement 24 | . 1 . . . 1 . 3 . . . . 1 . 1 . . . . 2 1 . . 1 5 . 1 3 1 . 3 . Assault 24 | . . . . . . . 1 . . . . . . 1 . . . . . . . . . . . . 1 11 6 4 . Garrison 4 | . . . . . 1 . . 1 . . . . . 1 . . . . . . . . . . . . 1 . . . . Intercept . | . . . . . . . . . . . . . . . . . . . . . . . . . . . . . . . . Searches Triggered . | . . . . . . . . . . . . . . . . . . . . . . . . . . . . . . . . Construction Impeded 4 | . . . . . . . 1 . . . . . . . . . . . 1 1 . . . 1 . . . . . . . Haulers Reinforced 4 | . . . . . . . . . . . . . . . . . . . 1 . . . . 1 . . 1 1 . . . Active Scanning Responses . | . . . . . . . . . . . . . . . . . . . . . . . . . . . . . . . . Cargo Convoy Interrupts . | . . . . . . . . . . . . . . . . . . . . . . . . . . . . . . . . Stealth | -11 -10 -10 -10 -9 -8 -8 -8 -7 -7 -7 -7 -6 -6 -5 -5 -5 -5 -4 -4 -4 -4 -4 -4 -3 -3 -2 -2 -2 -1 -1 -1 --------- Run | Scr Mat Min Exi Min Mat Gar Sto Fac Gar Fac Gar Fac Gar Fac Upp Upp War Pro Fac Ext Cet Arc Hub Res Qua Res Tes Sec Acc Com Ac0 Distress Signals 50 | . 4 . . . 1 1 1 . . . . 1 . 2 . . . . 1 1 2 . 2 7 2 . 2 4 . 19 . Communications Jammed 16 | . . . . . . . . . . . . 5 . . . . . . 9 . . . . . 2 . . . . . . Distress Signals 16 | . . . . . . . . . . . . 5 . . . . . . 9 . . . . . 2 . . . . . . Times Spotted 463 | . 19 3 13 3 12 8 36 5 11 5 20 7 24 27 . . . 6 16 23 10 . 5 18 16 4 14 67 5 56 30 Peak Tracking Total 19 | . 4 3 6 3 5 5 6 2 4 2 6 3 5 7 . . . 6 4 6 5 . 2 4 5 5 5 15 11 19 10 Tactical Retreats 31 | . . . 2 . 1 . 2 . 1 . 2 . 1 6 . . . 2 6 . . . 1 . 1 . . . . 3 3 Traps | -11 -10 -10 -10 -9 -8 -8 -8 -7 -7 -7 -7 -6 -6 -5 -5 -5 -5 -4 -4 -4 -4 -4 -4 -3 -3 -2 -2 -2 -1 -1 -1 ------- Run | Scr Mat Min Exi Min Mat Gar Sto Fac Gar Fac Gar Fac Gar Fac Upp Upp War Pro Fac Ext Cet Arc Hub Res Qua Res Tes Sec Acc Com Ac0 Traps Triggered 19 | . 1 . . . . . 1 . 1 . 6 . 3 1 . . 1 . . 1 . . 1 . 2 . . . 1 . . Indirectly . | . . . . . . . . . . . . . . . . . . . . . . . . . . . . . . . . Trap Hack Attempts . | . . . . . . . . . . . . . . . . . . . . . . . . . . . . . . . . Triggered . | . . . . . . . . . . . . . . . . . . . . . . . . . . . . . . . . Disarmed . | . . . . . . . . . . . . . . . . . . . . . . . . . . . . . . . . Reprogrammed . | . . . . . . . . . . . . . . . . . . . . . . . . . . . . . . . . Reused . | . . . . . . . . . . . . . . . . . . . . . . . . . . . . . . . . Traps Extracted . | . . . . . . . . . . . . . . . . . . . . . . . . . . . . . . . . Installed . | . . . . . . . . . . . . . . . . . . . . . . . . . . . . . . . . Triggered 1 | . . . . . . . . . . . . . . . . . . 1 . . . . . . . . . . . . . Machines | -11 -10 -10 -10 -9 -8 -8 -8 -7 -7 -7 -7 -6 -6 -5 -5 -5 -5 -4 -4 -4 -4 -4 -4 -3 -3 -2 -2 -2 -1 -1 -1 ---------- Run | Scr Mat Min Exi Min Mat Gar Sto Fac Gar Fac Gar Fac Gar Fac Upp Upp War Pro Fac Ext Cet Arc Hub Res Qua Res Tes Sec Acc Com Ac0 Machines Disabled 94 | . . 2 9 . 4 . . . . . 2 . 1 6 1 . 2 . 9 2 . 1 4 . 7 1 11 16 4 2 10 Max in Single Turn 3 | . . . 3 . 2 . . . . . 1 . 1 2 1 . 1 . 3 1 . . 3 . 1 1 2 2 1 1 1 Garrison Access 7 | . . . . . . . 1 . . . . . . 1 . . . . . . . . 1 . 1 2 1 . . . . Garrison Relay 2 | . . . . . . . . . . . 1 . 1 . . . . . . . . . . . . . . . . . . Network Hub 1 | . . . . . . . . . . . . . . . . . . . . . . . 1 . . . . . . . . Machines Sabotaged . | . . . . . . . . . . . . . . . . . . . . . . . . . . . . . . . . Garrisons Compromised . | . . . . . . . . . . . . . . . . . . . . . . . . . . . . . . . . Overloaded Fab Kills . | . . . . . . . . . . . . . . . . . . . . . . . . . . . . . . . . Hacking | -11 -10 -10 -10 -9 -8 -8 -8 -7 -7 -7 -7 -6 -6 -5 -5 -5 -5 -4 -4 -4 -4 -4 -4 -3 -3 -2 -2 -2 -1 -1 -1 --------- Run | Scr Mat Min Exi Min Mat Gar Sto Fac Gar Fac Gar Fac Gar Fac Upp Upp War Pro Fac Ext Cet Arc Hub Res Qua Res Tes Sec Acc Com Ac0 Machines Accessed 100 | . 2 . . . 1 . 4 2 . 2 . 6 . 7 1 1 . . 5 10 1 1 3 5 14 6 14 7 . 7 1 Terminals 71 | . 2 . . . . . 3 1 . 1 . 4 . 4 . . . . 5 10 1 . 2 2 11 3 9 6 . 7 . Fabricators 2 | . . . . . . . . . . . . . . 1 . . . . . . . . . 1 . . . . . . . Repair Stations 3 | . . . . . . . . . . . . 1 . . . . . . . . . . . 1 . . 1 . . . . Recycling Units . | . . . . . . . . . . . . . . . . . . . . . . . . . . . . . . . . Scanalyzers 9 | . . . . . . . . . . . . . . 1 . . . . . . . . . 1 2 1 3 1 . . . Garrison Access 11 | . . . . . 1 . 1 1 . 1 . 1 . 1 . . . . . . . . 1 . 1 2 1 . . . . Total Hacks 382 | . 4 . . . 1 . 5 2 . 3 . 28 . 19 1 1 . . 27 18 1 25 10 22 70 26 51 32 . 19 17 Successful 220 | . 2 . . . 1 . 2 1 . 1 . 18 . 12 1 1 . . 17 13 1 25 8 6 34 13 25 15 . 7 17 Failed 161 | . 2 . . . . . 3 1 . 2 . 10 . 7 . . . . 9 5 . . 2 16 36 13 26 17 . 12 . Catastrophic 27 | . . . . . . . 1 . . 1 . . . 1 . . . . . . . . . 4 6 4 3 4 . 3 . Database Lockouts 1 | . . . . . . . . . . . . . . . . . . . 1 . . . . . . . . . . . . Manual 213 | . . . 1 . . . 3 1 . 2 . 17 . 16 . . . . 20 9 1 . 6 7 39 18 35 25 . 13 . Terminals 275 | . 4 . . . . . 4 1 . 1 . 23 . 15 . . . . 27 18 1 . 9 13 54 21 39 26 . 19 . Fabricators 2 | . . . . . . . . . . . . . . 1 . . . . . . . . . 1 . . . . . . . Repair Stations 11 | . . . . . . . . . . . . 2 . . . . . . . . . . . 5 . . 4 . . . . Recycling Units . | . . . . . . . . . . . . . . . . . . . . . . . . . . . . . . . . Scanalyzers 35 | . . . . . . . . . . . . . . 2 . . . . . . . . . 3 15 3 6 6 . . . Garrison Access 15 | . . . . . 1 . 1 1 . 2 . 3 . 1 . . . . . . . . 1 . 1 2 2 . . . . Terminal Hacks 114 | . 2 . . . . . 1 . . . . 8 . 2 1 1 . . 11 9 1 25 4 1 12 5 5 6 . 3 17 Record 46 | . . . . . . . . . . . . . . . 1 . . . 1 . . 25 . . 1 . 1 . . . 17 Part Schematic 4 | . . . . . . . . . . . . . . . . . . . 3 . . . . . 1 . . . . . . Prototype ID Bank 2 | . . . . . . . . . . . . 1 . . . . . . 1 . . . . . . . . . . . . Open Door 14 | . . . . . . . 1 . . . . . . . . 1 . . . 6 1 . . . 2 . . 3 . . . Level Access Points 1 | . . . . . . . . . . . . . . . . . . . . . . . 1 . . . . . . . . Branch Access Points 4 | . . . . . . . . . . . . 1 . 1 . . . . 1 . . . . . . 1 . . . . . Emergency Access Points 2 | . . . . . . . . . . . . 1 . . . . . . . . . . 1 . . . . . . . . Machine Index 1 | . . . . . . . . . . . . . . . . . . . 1 . . . . . . . . . . . . Terminal Index 1 | . . . . . . . . . . . . . . . . . . . . . . . . . 1 . . . . . . Fabricator Index 1 | . . . . . . . . . . . . . . . . . . . 1 . . . . . . . . . . . . Scanalyzer Index 1 | . . . . . . . . . . . . . . . . . . . . . . . . . 1 . . . . . . Unreport Threat 11 | . 1 . . . . . . . . . . 2 . . . . . . 1 2 . . . 1 . 2 . 1 . 1 . Locate Traps 12 | . . . . . . . . . . . . 1 . 1 . . . . 1 . . . 1 . 2 2 2 2 . . . Dispatch Records 1 | . . . . . . . . . . . . . . . . . . . . . . . . . 1 . . . . . . Surveillance Status 1 | . . . . . . . . . . . . . . . . . . . . . . . . . 1 . . . . . . Patrol Status 1 | . . . . . . . . . . . . . . . . . . . . . . . . . 1 . . . . . . Transport Status 1 | . . . . . . . . . . . . . . . . . . . 1 . . . . . . . . . . . . Recall Investigation 1 | . 1 . . . . . . . . . . . . . . . . . . . . . . . . . . . . . . Recall Reinforcements 1 | . . . . . . . . . . . . . . . . . . . . 1 . . . . . . . . . . . Registered Components 1 | . . . . . . . . . . . . 1 . . . . . . . . . . . . . . . . . . . Registered Prototypes 1 | . . . . . . . . . . . . 1 . . . . . . . . . . . . . . . . . . . Zone Layout 2 | . . . . . . . . . . . . . . . . . . . . . . . 1 . 1 . . . . . . Protovariant Controls 2 | . . . . . . . . . . . . . . . . . . . . . . . . . . . 2 . . . . Disengage Seal 2 | . . . . . . . . . . . . . . . . . . . . . . . . . . . . . . 2 . Fabricator Hacks . | . . . . . . . . . . . . . . . . . . . . . . . . . . . . . . . . Repair Station Hacks 5 | . . . . . . . . . . . . 2 . . . . . . . . . . . 2 . . 1 . . . . Scan Component 3 | . . . . . . . . . . . . 1 . . . . . . . . . . . 1 . . 1 . . . . Repair 2 | . . . . . . . . . . . . 1 . . . . . . . . . . . 1 . . . . . . . Recycling Unit Hacks . | . . . . . . . . . . . . . . . . . . . . . . . . . . . . . . . . Scanalyzer 18 | . . . . . . . . . . . . . . 2 . . . . . . . . . 1 8 2 4 1 . . . Insert Component 15 | . . . . . . . . . . . . . . 1 . . . . . . . . . 1 6 2 4 1 . . . Analyze 3 | . . . . . . . . . . . . . . 1 . . . . . . . . . . 2 . . . . . . Garrison Access Hacks 10 | . . . . . 1 . 1 1 . 1 . 1 . . . . . . . . . . 1 . 1 2 1 . . . . Unlock Access 4 | . . . . . 1 . . 1 . 1 . 1 . . . . . . . . . . . . . . . . . . . Seal Access 6 | . . . . . . . 1 . . . . . . . . . . . . . . . 1 . 1 2 1 . . . . Unauthorized Hacks 73 | . . . . . . . . . . . . 7 . 8 . . . . 6 4 . . 3 2 13 4 14 8 . 4 . Terminals 67 | . . . . . . . . . . . . 6 . 6 . . . . 6 4 . . 3 2 13 4 12 7 . 4 . Track 5 | . . . . . . . . . . . . . . . . . . . 1 . . . . . 1 1 1 1 . . . Assimilate 9 | . . . . . . . . . . . . 1 . 1 . . . . 1 . . . . . 2 . 2 . . 2 . Botnet 40 | . . . . . . . . . . . . 4 . 4 . . . . 4 4 . . 2 1 7 3 6 3 . 2 . Detonate 3 | . . . . . . . . . . . . . . . . . . . . . . . . . 1 . 1 1 . . . Disrupt 4 | . . . . . . . . . . . . . . . . . . . . . . . . 1 1 . 1 1 . . . Operators 6 | . . . . . . . . . . . . 1 . 1 . . . . . . . . 1 . 1 . 1 1 . . . Fabricators 1 | . . . . . . . . . . . . . . 1 . . . . . . . . . . . . . . . . . Fabnet 1 | . . . . . . . . . . . . . . 1 . . . . . . . . . . . . . . . . . Repair Stations . | . . . . . . . . . . . . . . . . . . . . . . . . . . . . . . . . Recycling Units . | . . . . . . . . . . . . . . . . . . . . . . . . . . . . . . . . Scanalyzers 3 | . . . . . . . . . . . . . . . . . . . . . . . . . . . 2 1 . . . Researchers 3 | . . . . . . . . . . . . . . . . . . . . . . . . . . . 2 1 . . . Garrison Access 2 | . . . . . . . . . . . . 1 . 1 . . . . . . . . . . . . . . . . . Reprogram 2 | . . . . . . . . . . . . 1 . 1 . . . . . . . . . . . . . . . . . Data Cores Recovered 1 | . . . . . . . . . . 1 . . . . . . . . . . . . . . . . . . . . . Used . | . . . . . . . . . . . . . . . . . . . . . . . . . . . . . . . . Hacking Detections 56 | . 1 . . . 1 . 2 2 . 2 . 5 . 5 . . . . 4 4 . . 1 5 5 2 10 1 . 6 . Full Trace Events 1 | . . . . . . . . . . . . . . 1 . . . . . . . . . . . . . . . . . Feedback Events . | . . . . . . . . . . . . . . . . . . . . . . . . . . . . . . . . Feedback Blocked . | . . . . . . . . . . . . . . . . . . . . . . . . . . . . . . . . Robot Schematics Acquired 1 | . . . . . . . . . . . . . . . . . . . . . . . . . . . 1 . . . . Robots Built . | . . . . . . . . . . . . . . . . . . . . . . . . . . . . . . . . Authchips . | . . . . . . . . . . . . . . . . . . . . . . . . . . . . . . . . Time . | . . . . . . . . . . . . . . . . . . . . . . . . . . . . . . . . Total Robot Build Rating . | . . . . . . . . . . . . . . . . . . . . . . . . . . . . . . . . Part Schematics Acquired 10 | . . . . . . . . . . . . . . 1 . . . . 3 . . . . . 2 . . 4 . . . Parts Built . | . . . . . . . . . . . . . . . . . . . . . . . . . . . . . . . . Authchips . | . . . . . . . . . . . . . . . . . . . . . . . . . . . . . . . . Time . | . . . . . . . . . . . . . . . . . . . . . . . . . . . . . . . . Total Part Build Rating . | . . . . . . . . . . . . . . . . . . . . . . . . . . . . . . . . Parts Repaired 2 | . . . . . . . . . . . . 1 . . . . . . . . . . . 1 . . . . . . . Time 49 | . . . . . . . . . . . . 31 . . . . . . . . . . . 18 . . . . . . . Parts Recycled . | . . . . . . . . . . . . . . . . . . . . . . . . . . . . . . . . Recycled Matter . | . . . . . . . . . . . . . . . . . . . . . . . . . . . . . . . . Retrieved Matter . | . . . . . . . . . . . . . . . . . . . . . . . . . . . . . . . . Retrieved Components . | . . . . . . . . . . . . . . . . . . . . . . . . . . . . . . . . Parts Scanalyzed 4 | . . . . . . . . . . . . . . 1 . . . . . . . . . 1 1 . . 1 . . . Part Schematics Acquired 2 | . . . . . . . . . . . . . . 1 . . . . . . . . . . 1 . . . . . . Parts Damaged . | . . . . . . . . . . . . . . . . . . . . . . . . . . . . . . . . Bothacking | -11 -10 -10 -10 -9 -8 -8 -8 -7 -7 -7 -7 -6 -6 -5 -5 -5 -5 -4 -4 -4 -4 -4 -4 -3 -3 -2 -2 -2 -1 -1 -1 ------------ Run | Scr Mat Min Exi Min Mat Gar Sto Fac Gar Fac Gar Fac Gar Fac Upp Upp War Pro Fac Ext Cet Arc Hub Res Qua Res Tes Sec Acc Com Ac0 Used RIF Installer 4 | . . . . . . 1 . . 1 . 1 . 1 . . . . . . . . . . . . . . . . . . Hotswap 1 | . . . . . . . . . . . 1 . . . . . . . . . . . . . . . . . . . . Zone Cloak 2 | . . . . . . . . . 1 . . . 1 . . . . . . . . . . . . . . . . . . Robots Hacked 1 | . . . . . . . . . . . . . . 1 . . . . . . . . . . . . . . . . . Non-combat 1 | . . . . . . . . . . . . . . 1 . . . . . . . . . . . . . . . . . Combat . | . . . . . . . . . . . . . . . . . . . . . . . . . . . . . . . . Robot Hacks Applied 1 | . . . . . . . . . . . . . . 1 . . . . . . . . . . . . . . . . . drop_inventory 1 | . . . . . . . . . . . . . . 1 . . . . . . . . . . . . . . . . . Relay Couplers Released 17 | . . . . . . . . . . . 3 . 3 2 . . . . . . . . . 8 1 . . . . . . Machine Destruction 9 | . . . . . . . . . . . 3 . 3 2 . . . . . . . . . . 1 . . . . . . Programmers 8 | . . . . . . . . . . . . . . . . . . . . . . . . 8 . . . . . . . Attached 1 | . . . . . . . . . . . . . . 1 . . . . . . . . . . . . . . . . . Fabnet Peak Effective % 3 | . . . . . . . . . . . . . . . . . . 3 3 3 3 3 3 1 1 . . . . . . Robots Rewired 3 | . . . . . . . . . . . . . . . . . . . . 3 . . . . . . . . . . . Allies Hacked . | . . . . . . . . . . . . . . . . . . . . . . . . . . . . . . . . Hacks Repelled . | . . . . . . . . . . . . . . . . . . . . . . . . . . . . . . . . Allies | -11 -10 -10 -10 -9 -8 -8 -8 -7 -7 -7 -7 -6 -6 -5 -5 -5 -5 -4 -4 -4 -4 -4 -4 -3 -3 -2 -2 -2 -1 -1 -1 -------- Run | Scr Mat Min Exi Min Mat Gar Sto Fac Gar Fac Gar Fac Gar Fac Upp Upp War Pro Fac Ext Cet Arc Hub Res Qua Res Tes Sec Acc Com Ac0 Total Allies 141 | . . 5 . . . . . . . . . 3 . 3 . . . . 1 11 5 . . . 2 . 1 . 6 104 . Largest Group 18 | . . 5 4 1 1 . . . . . . 3 3 3 . . . . 1 11 8 6 . . 2 . 1 . 6 18 . Highest-Rated Group 858 | . . 89 73 8 8 . . . . . . 90 90 87 . . . . 10 596 705 565 . . 90 . 10 . 85 858 . Highest-Rated Ally 234 | . . 31 31 8 8 . . . . . . 40 40 29 . . . . 10 159 152 130 . . 45 . 10 . 15 234 . Total Orders 4 | . . . 2 . . . . . . . . . . . . . . . . . . . . . 1 . 1 . . . . STAY 3 | . . . 1 . . . . . . . . . . . . . . . . . . . . . 1 . 1 . . . . FOLLOW 1 | . . . 1 . . . . . . . . . . . . . . . . . . . . . . . . . . . . Ally Attacks 508 | . . 19 77 6 4 . . . . . . 1 44 17 . . . . . 104 52 18 . . . . . . . 166 . Total Damage 13115 | . . 185 1972 73 43 . . . . . . 35 1155 246 . . . . . 2615 1513 684 . . . . . . . 4594 . Kills 75 | . . 2 8 2 2 . . . . . . . 10 1 . . . . . 14 7 4 . . . . . . . 25 . Allies Corrupted 10 | . . . . . . . . . . . . . . . . . . . . . . . . . . . . . . 10 . Allies Melted . | . . . . . . . . . . . . . . . . . . . . . . . . . . . . . . . . Turrets Deployed 4 | . . . 3 . . . . . . . . . 1 . . . . . . . . . . . . . . . . . . Intel | -11 -10 -10 -10 -9 -8 -8 -8 -7 -7 -7 -7 -6 -6 -5 -5 -5 -5 -4 -4 -4 -4 -4 -4 -3 -3 -2 -2 -2 -1 -1 -1 ------- Run | Scr Mat Min Exi Min Mat Gar Sto Fac Gar Fac Gar Fac Gar Fac Upp Upp War Pro Fac Ext Cet Arc Hub Res Qua Res Tes Sec Acc Com Ac0 Robot Analysis Total . | . . . . . . . . . . . . . . . . . . . . . . . . . . . . . . . . Derelict Logs Recovered 2 | . . . . . . . . . . . . . . . 2 . . . . . . . . . . . . . . . . Drone Launches . | . . . . . . . . . . . . . . . . . . . . . . . . . . . . . . . . Drone Recoveries . | . . . . . . . . . . . . . . . . . . . . . . . . . . . . . . . . Exploration | -11 -10 -10 -10 -9 -8 -8 -8 -7 -7 -7 -7 -6 -6 -5 -5 -5 -5 -4 -4 -4 -4 -4 -4 -3 -3 -2 -2 -2 -1 -1 -1 ------------- Run | Scr Mat Min Exi Min Mat Gar Sto Fac Gar Fac Gar Fac Gar Fac Upp Upp War Pro Fac Ext Cet Arc Hub Res Qua Res Tes Sec Acc Com Ac0 Turns Passed 18418 | 79 889 367 1339 35 156 106 569 177 425 318 795 620 974 786 324 246 68 408 822 763 235 60 217 857 626 583 1429 1961 164 1530 490 Spaces Moved 16480 | 47 444 226 774 20 152 116 322 131 285 230 448 361 647 548 398 360 98 339 972 517 151 43 112 495 836 847 957 1209 272 3013 1110 Core 32 | 5 . . . . . . 1 . . . . . . 25 . . . . . . . . . . . . . 1 . . . Treads 2606 | 42 444 226 468 . . . . . . . . . . . . . . . . . . . . 223 . . 421 782 . . . Legs 7502 | . . . 306 20 . . 3 . 1 . 308 338 548 110 . . . . . 484 151 43 112 257 . . . 426 272 3013 1110 Wheels 1050 | . . . . . . . 143 131 284 230 140 23 99 . . . . . . . . . . . . . . . . . . Hover 5262 | . . . . . 152 116 164 . . . . . . 413 381 360 98 339 972 33 . . . 15 836 847 536 . . . . Flight 28 | . . . . . . . 11 . . . . . . . 17 . . . . . . . . . . . . . . . . Fastest Speed 30 | 50 160 160 130 130 55 55 55 115 115 115 115 120 120 71 55 65 65 65 55 118 120 120 120 55 55 53 53 30 30 30 30 Average Speed 85 | 148 160 160 152 130 66 55 113 115 115 116 118 143 122 117 78 66 65 70 62 120 120 120 146 150 58 55 124 108 30 30 30 Slowest Speed 680 | 160 160 160 240 130 71 55 680 115 260 130 190 260 260 250 80 80 65 71 150 190 120 120 260 260 111 111 161 152 30 30 30 Overloaded Moves . | . . . . . . . . . . . . . . . . . . . . . . . . . . . . . . . . Propulsion Burnouts . | . . . . . . . . . . . . . . . . . . . . . . . . . . . . . . . . Robots Hopped 5 | . . . 5 . . . . . . . . . . . . . . . . . . . . . . . . . . . . Cave-ins Triggered 1 | . . . . . . . . . . . . . . . . . . . . . . . . . . . . . . 1 . Teleports 2 | . . . . . . . . . . . . . . . . . . . . . . . . . . . . . . 1 1 Exploration Rate (%) 43 | 4 71 43 87 10 23 27 54 7 43 7 58 13 63 12 55 48 18 61 31 67 66 73 13 17 78 29 82 62 8 72 75 Regions Visited 31 Branch Regions 17 Pre-discovered Areas . | . . . . . . . . . . . . . . . . . . . . . . . . . . . . . . . . Known Exits Taken 19 | . . . . . 1 . . 1 . 1 . 1 . 1 1 1 1 1 1 1 1 1 1 1 1 1 1 1 . . . Unknown Exits Taken 8 | 1 1 1 1 1 . . 1 . . . . . . . . . . . . . . . . . . . . . 1 1 . Scrap Searched 5 | . . . . . . . . . . . . . . . 2 2 . 1 . . . . . . . . . . . . . Spaces Dug 454 | . . . . . . . . . . . . 6 . . . . . 2 36 3 . . 3 3 17 11 20 39 102 151 61 Terrain Destroyed 1981 | . . 6 18 5 49 . 36 8 5 . 1 10 39 93 . . . 2 73 13 10 . 188 13 25 34 81 106 121 458 587 Melee 19 | . . . . . . . . . . . . . . . . . . 2 17 . . . . . . . . . . . . Projectile 1314 | . . . . . . . . . . . 1 10 1 3 . . . . 22 13 10 . 17 13 25 12 31 61 96 412 587 AOE 648 | . . 6 18 5 49 . 36 8 5 . . . 38 90 . . . . 34 . . . 171 . . 22 50 45 25 46 . Terrain Rammed . | . . . . . . . . . . . . . . . . . . . . . . . . . . . . . . . . Walls Destroyed . | . . . . . . . . . . . . . . . . . . . . . . . . . . . . . . . . Machines Disabled . | . . . . . . . . . . . . . . . . . . . . . . . . . . . . . . . . Actions | -11 -10 -10 -10 -9 -8 -8 -8 -7 -7 -7 -7 -6 -6 -5 -5 -5 -5 -4 -4 -4 -4 -4 -4 -3 -3 -2 -2 -2 -1 -1 -1 --------- Run | Scr Mat Min Exi Min Mat Gar Sto Fac Gar Fac Gar Fac Gar Fac Upp Upp War Pro Fac Ext Cet Arc Hub Res Qua Res Tes Sec Acc Com Ac0 Total 19336 | 53 522 230 870 24 182 131 422 146 346 251 614 426 750 632 405 364 100 504 1085 612 176 51 140 584 932 941 1121 1677 340 3521 1184 Wait 1165 | . 5 . 3 . 3 3 12 . 19 . 43 34 20 12 . . . 163 16 11 6 9 8 40 25 17 29 223 54 396 14 Move 16438 | 46 443 225 763 19 151 115 321 131 284 229 447 360 646 547 397 359 97 338 971 516 150 42 111 494 835 846 956 1208 271 3011 1109 Hop 5 | . . . 5 . . . . . . . . . . . . . . . . . . . . . . . . . . . . Pick Up 196 | 1 16 1 24 . 4 . 6 . 4 2 4 3 4 10 1 3 . . 9 4 3 . 4 9 15 15 12 34 . 5 3 Fast Attach 164 | 6 2 . 2 . 4 . 9 2 7 1 7 3 9 3 1 2 . . 10 8 2 . 3 8 3 10 23 21 1 12 5 Attach 76 | . . . 8 . 1 . 2 2 2 . 2 1 1 6 1 . 1 . 4 2 . . . 8 4 3 9 12 1 6 . Detach 39 | . . . . . . . . . 1 . . . . 1 . . . . 4 2 . . . 7 4 2 11 7 . . . Swap 77 | . 1 1 8 1 3 . 4 . 1 1 5 1 6 7 3 . . . 4 2 . . 1 2 1 1 5 15 . 4 . Drop 187 | . 4 1 22 . 4 . 8 2 5 2 8 2 8 3 1 . . . 5 8 1 . . 5 4 22 24 30 . 14 4 Fire 852 | . 51 2 35 4 12 13 60 9 23 16 62 22 43 38 . . 2 1 38 30 14 . 13 11 39 25 50 112 13 65 49 Melee 45 | . . . . . . . . . . . . . . . 1 . . 2 24 . . . . . 2 . 1 15 . . . Ram 1 | . . . . . . . . . . . . . . . . . . . . . . . . . . . 1 . . . . Kick . | . . . . . . . . . . . . . . . . . . . . . . . . . . . . . . . . Crush . | . . . . . . . . . . . . . . . . . . . . . . . . . . . . . . . . Escape Stasis 56 | . . . . . . . . . . . 36 . 13 5 . . . . . 1 . . . . . . . . . 1 . Rewire 35 | . . . . . . . . . . . . . . . . . . . . 28 . . . . . . . . . 7 . Trap . | . . . . . . . . . . . . . . . . . . . . . . . . . . . . . . . . Miscellaneous . | . . . . . . . . . . . . . . . . . . . . . . . . . . . . . . . . Route ------- -11/Scrapyard -10/Materials (discovered 2 exits: [*Mat] / [*Min]) -10/Mines (discovered 3 exits: [*Mat x2] / *Exi) -10/Exiles -9/Mines -8/Materials (discovered 2 exits: *Sto / Gar) -8/Garrison -8/Storage -7/Factory -7/Garrison -7/Factory -7/Garrison (discovered 3 exits: *Fac x3) -6/Factory (discovered 3 exits: Low x2 / Gar) -6/Garrison (discovered 3 exits: *Fac x3) -5/Factory (discovered 3 exits: *Fac / *Upp x2) -5/Upper Caves -5/Upper Caves -5/Warlord -4/Proximity Caves -4/Factory (discovered 6 exits: *Res / *Upp x2 / *Ext x2 / Arm) -4/Extension (discovered 2 exits: *Res / *Cet) -4/Cetus (discovered 2 exits: *Res / *Arc) -4/Archives -4/Hub_04(d) (discovered 4 exits: *Res x4) -3/Research (discovered 2 exits: *Res / *Qua) -3/Quarantine -2/Research (discovered 3 exits: Acc / *Tes x2) -2/Testing (discovered 2 exits: *Acc / *Sec) -2/Section 7 -1/Access -1/Command (discovered 3 exits: [*Sur x2] / *Ac0) -1/Access_0 Tau Ceti IV Orbit History --------- Turn | Location | Event 32 | -11/Scrapyard | Discovered new exit (range 16) 80 | -11/Scrapyard | Entered Materials 273 | -10/Materials | Discovered new exit (range 16) 317 | -10/Materials | Build established: Mutant 532 | -10/Materials | Discovered new exit (range 10) 969 | -10/Materials | Entered Mines 973 | -10/Mines | Assisted by bots powering up and referring to "LRC-V3" 1105 | -10/Mines | Found a damaged Exp. Sensor Array with a note attached 1108 | -10/Mines | Found Prototype Device 1141 | -10/Mines | Discovered new exit (range 9) 1242 | -10/Mines | Discovered new exit (range 6) 1328 | -10/Mines | Deemed a non-threat by the Exiles lab entrance 1328 | -10/Mines | Discovered new exit (range 5) 1336 | -10/Mines | Entered Exiles 1336 | -10/Exiles | Accompanied by 4 allies 1366 | -10/Exiles | Led the pair of lost Derelicts to a safe place 1376 | -10/Exiles | Met 8R-AWN 1402 | -10/Exiles | Met EX-HEX 1482 | -10/Exiles | Met EX-BIN 1501 | -10/Exiles | Aligned with FarCom system 1503 | -10/Exiles | Given EX-Vault access code 1541 | -10/Exiles | Opened EX-Vault 1548 | -10/Exiles | Found Deploy-a-Sentry 1550 | -10/Exiles | Found Deploy-a-Sentry 1553 | -10/Exiles | Found Deploy-a-Sentry 1557 | -10/Exiles | Found Prototype Device 1566 | -10/Exiles | Found Prototype Storage 1602 | -10/Exiles | Warned to stay clear of 0b10 Research branches 1649 | -10/Exiles | DAS Turret deployed 1651 | -10/Exiles | DAS Turret deployed 1737 | -10/Exiles | Met EX-DEC 1756 | -10/Exiles | DAS Turret deployed 1889 | -10/Exiles | Attacked by the Exiles 1892 | -10/Exiles | Allies destroyed EX-HEX 1895 | -10/Exiles | Allies destroyed EX-BIN 1938 | -10/Exiles | Allies destroyed 8R-AWN 1967 | -10/Exiles | Lost 4 parts (1p1n1u1w) 2096 | -10/Exiles | Core integrity fell below 50% 2139 | -10/Exiles | Core integrity fell below 20% 2143 | -10/Exiles | Destroyed EX-DEC 2172 | -10/Exiles | Lost 3 parts (1p1n1u) 2208 | -10/Exiles | Found Deploy-a-Sentry 2281 | -10/Exiles | Identified PSU Rigger 2282 | -10/Exiles | Identified Exp. Sensor Array 2661 | -10/Exiles | Discovered new exit (range 14) 2675 | -10/Exiles | Stole three prototypes: PSU Rigger, Deploy-a-Sentry, Lightpack 2.0 2675 | -10/Exiles | Entered Mines 2675 | -9/Mines | Accompanied by 2 allies 2677 | -9/Mines | Met a Derelict bent on vengeance 2699 | -9/Mines | Discovered new exit (range 8) 2710 | -9/Mines | Entered Materials 2710 | -8/Materials | Accompanied by 1 ally 2710 | -8/Materials | Evolved 4 slots: Propulsion x2, Utility x2 2830 | -8/Materials | Garrison activated, responded to threat 2853 | -8/Materials | Identified exit to Garrison 2857 | -8/Materials | Discovered new exit (range 7) 2866 | -8/Materials | Entered Garrison 2867 | -8/Garrison | Destroyed 7 combat bots 2869 | -8/Garrison | Installed Relay Interface Framework 2946 | -8/Garrison | Triggered checkpoint 2966 | -8/Garrison | Discovered new exit (range 10) 2967 | -8/Garrison | Destroyed 8 combat bots 2972 | -8/Garrison | Entered Storage 3066 | -8/Storage | Build established: Scavenger-Mutant 3262 | -8/Storage | Lost 5 parts (1p3n1w) 3346 | -8/Storage | Discovered new exit (range 7) 3372 | -8/Storage | First assault squad dispatched 3510 | -8/Storage | Destroyed 8 combat bots 3541 | -8/Storage | Entered Factory 3541 | -7/Factory | Evolved 2 slots: Utility x2 3670 | -7/Factory | Garrison activated, responded to threat 3718 | -7/Factory | Identified exit to Garrison 3718 | -7/Factory | Entered Garrison 3792 | -7/Garrison | Triggered checkpoint 3882 | -7/Garrison | Discovered new exit (range 15) 3945 | -7/Garrison | Expanded RIF knowledge: Zone Cloak 4143 | -7/Garrison | Entered Factory 4180 | -7/Factory | Identified exit to Garrison 4461 | -7/Factory | Entered Garrison 4514 | -7/Garrison | Triggered checkpoint 4576 | -7/Garrison | Triggered checkpoint 4614 | -7/Garrison | Garrison Relay disabled 4740 | -7/Garrison | Lost 3 parts (1p2n) 4915 | -7/Garrison | Discovered new exit (range 14) 4994 | -7/Garrison | Triggered checkpoint 5032 | -7/Garrison | Discovered new exit (range 14) 5154 | -7/Garrison | Triggered checkpoint 5230 | -7/Garrison | Discovered new exit (range 9) 5244 | -7/Garrison | Identified exit to Factory 5251 | -7/Garrison | Expanded RIF knowledge: Hotswap 5256 | -7/Garrison | Entered Factory 5256 | -6/Factory | Evolved 2 slots: Utility x2 5375 | -6/Factory | Repaired Adv. Transmission Jammer 5435 | -6/Factory | Identified Lightpack 2.0 5806 | -6/Factory | Identified exit to Lower Caves 5870 | -6/Factory | Identified exit to Garrison 5876 | -6/Factory | Entered Garrison 5876 | -6/Garrison | Accompanied by 3 allies 5930 | -6/Garrison | Garrison Relay disabled 6022 | -6/Garrison | Spotted B-75 Beast 6025 | -6/Garrison | DAS Turret deployed 6030 | -6/Garrison | Triggered checkpoint 6032 | -6/Garrison | Triggered checkpoint 6075 | -6/Garrison | Lost 3 parts (2n1u) 6157 | -6/Garrison | Allies destroyed B-75 Beast 6292 | -6/Garrison | Triggered checkpoint 6393 | -6/Garrison | Discovered new exit (range 9) 6436 | -6/Garrison | Triggered checkpoint 6501 | -6/Garrison | Discovered new exit (range 12) 6568 | -6/Garrison | Triggered checkpoint 6690 | -6/Garrison | Discovered new exit (range 14) 6707 | -6/Garrison | Identified exit to Factory 6714 | -6/Garrison | Expanded RIF knowledge: Zone Cloak 6850 | -6/Garrison | Entered Factory 6850 | -5/Factory | Evolved 2 slots: Utility x2 7051 | -5/Factory | Discovered new exit (range 6) 7058 | -5/Factory | Identified exit to Upper Caves 7157 | -5/Factory | Build established: Hauler-Mutant 7161 | -5/Factory | Discovered new exit (range 7) 7169 | -5/Factory | Identified exit to Factory 7264 | -5/Factory | Found Powered Armor 7267 | -5/Factory | Found Powered Armor 7580 | -5/Factory | Lost 6 parts (1p1n4w) 7636 | -5/Factory | Entered Upper Caves 7677 | -5/Upper Caves | Found Alien Artifact 7848 | -5/Upper Caves | Learned Factory garrison access intel 7939 | -5/Upper Caves | Discovered new exit (range 12) 7942 | -5/Upper Caves | Build established: Hauler-Scout 7954 | -5/Upper Caves | Learned Factory terminal intel 7960 | -5/Upper Caves | Identified exit to Upper Caves 7960 | -5/Upper Caves | Entered another Upper Caves area 8101 | -5/Upper Caves | Discovered new exit (range 3) 8105 | -5/Upper Caves | Identified exit to Warlord 8206 | -5/Upper Caves | Entered Warlord 8237 | -5/Warlord | RIF detected upon attempting to enter Warlord's base 8237 | -5/Warlord | Attacked by Warlord forces 8253 | -5/Warlord | Discovered new exit (range 14) 8274 | -5/Warlord | Identified exit to Proximity Caves 8274 | -5/Warlord | Entered Proximity Caves 8669 | -4/Proximity Caves | Discovered exit to Factory (range 8) 8682 | -4/Proximity Caves | Entered Factory 8682 | -4/Factory | Evolved 2 slots: Utility x2 8683 | -4/Factory | Loaded intel: 28 terminal locations 8684 | -4/Factory | Loaded intel: 3 garrison access locations 8842 | -4/Factory | Found Prototype Processor 8842 | -4/Factory | Identified Exp. Terrain Scan Processor 8864 | -4/Factory | Spotted B-86 Titan 9009 | -4/Factory | Build established: Hauler-Ninja 9013 | -4/Factory | Identified exit to Upper Caves 9013 | -4/Factory | Identified exit to Extension 9013 | -4/Factory | Identified exit to Armory 9029 | -4/Factory | Central database locked down 9042 | -4/Factory | Discovered new exit (range 15) 9105 | -4/Factory | P-70 Sage assimilated allied Technician 7a 9410 | -4/Factory | Build established: Hauler-Mutant 9480 | -4/Factory | Found Prototype Hackware 9480 | -4/Factory | Identified Exp. System Shield 9504 | -4/Factory | Entered Extension 9582 | -4/Extension | Rescued a captive Derelict 9760 | -4/Extension | Rescued a captive Derelict 9763 | -4/Extension | Build established: Hacker-Mutant 9778 | -4/Extension | Rescued a captive Derelict 9816 | -4/Extension | Rescued a captive Derelict 9817 | -4/Extension | Rescued a captive Derelict 9907 | -4/Extension | Rescued a captive Derelict 9909 | -4/Extension | Rescued a captive Derelict 9914 | -4/Extension | Rescued A7 10068 | -4/Extension | Spotted B-86 Titan 10078 | -4/Extension | Allies destroyed B-86 Titan 10093 | -4/Extension | Spotted B-86 Titan 10103 | -4/Extension | Allies destroyed B-86 Titan 10238 | -4/Extension | Discovered new exit (range 16) 10240 | -4/Extension | Discovered new exit (range 14) 10261 | -4/Extension | Identified exit to Cetus 10267 | -4/Extension | Entered Cetus 10267 | -4/Cetus | Accompanied by 7 allies (A7) 10272 | -4/Cetus | Acquired a Cetus Manufacturing Module code from A7 10284 | -4/Cetus | Spotted Cetus Guard 10284 | -4/Cetus | Spotted Cetus Guard 10286 | -4/Cetus | Allies destroyed Cetus Guard 10287 | -4/Cetus | Spotted Cetus Guard 10288 | -4/Cetus | Spotted Cetus Guard 10296 | -4/Cetus | Allies destroyed Cetus Guard 10299 | -4/Cetus | Destroyed Cetus Guard 10301 | -4/Cetus | Allies destroyed Cetus Guard 10308 | -4/Cetus | Build established: Hauler-Mutant 10352 | -4/Cetus | Started Cetus Manufacturing Module 10361 | -4/Cetus | Escorted A7 to Cetus Mainframe 10375 | -4/Cetus | Discovered new exit (range 16) 10377 | -4/Cetus | Manufactured an Enhanced Grunt 10402 | -4/Cetus | Manufactured an Enhanced Grunt 10402 | -4/Cetus | Spotted Cetus Guard 10402 | -4/Cetus | Spotted Cetus Guard 10403 | -4/Cetus | Spotted Cetus Guard 10403 | -4/Cetus | Spotted Cetus Guard 10417 | -4/Cetus | Allies destroyed Cetus Guard 10422 | -4/Cetus | Destroyed Cetus Guard 10425 | -4/Cetus | Destroyed Cetus Guard 10427 | -4/Cetus | Manufactured an Enhanced Grunt 10430 | -4/Cetus | Allies destroyed Cetus Guard 10440 | -4/Cetus | Discovered new exit (range 16) 10448 | -4/Cetus | Met Revision 17 10452 | -4/Cetus | Manufactured an Enhanced Grunt 10477 | -4/Cetus | Manufactured an Enhanced Grunt 10500 | -4/Cetus | Identified exit to Archives 10502 | -4/Cetus | Entered Archives 10502 | -4/Archives | Accompanied by 6 allies (A7) 10507 | -4/Archives | Received a hacking code to weaken MAIN.C 10517 | -4/Archives | Met Zhirov 10523 | -4/Archives | Reinforcements dispatched to Archives 10530 | -4/Archives | Read partially decrypted archive contents 10532 | -4/Archives | Discovered new exit (range 15) 10548 | -4/Archives | Identified exit to Hub_04(d) 10562 | -4/Archives | Zhirov detonated Archives 10562 | -4/Archives | Entered Hub_04(d) 10628 | -4/Hub_04(d) | Discovered new exit (range 7) 10673 | -4/Hub_04(d) | Discovered new exit (range 13) 10673 | -4/Hub_04(d) | Identified exit to Research 10738 | -4/Hub_04(d) | Network Hub disabled 10779 | -4/Hub_04(d) | Entered Research 10779 | -3/Research | Evolved 2 slots: Utility x1, Weapon x1 10962 | -3/Research | Discovered new exit (range 14) 10979 | -3/Research | Revision forces began assault on 0b10 11018 | -3/Research | Met up with Revision 17++ 11076 | -3/Research | Identified exit to Research 11479 | -3/Research | Research terminal network offline 11480 | -3/Research | Repaired Imp. Kinecellerator 11587 | -3/Research | Discovered new exit (range 15) 11604 | -3/Research | Identified exit to Quarantine 11636 | -3/Research | Entered Quarantine 11650 | -3/Quarantine | Found Alien Artifact 11650 | -3/Quarantine | Identified Subatomic Replicator 11684 | -3/Quarantine | Identified Dimensional Node Initializer 11711 | -3/Quarantine | Found Gamma Bomb Array 11737 | -3/Quarantine | Found Alien Artifact 11762 | -3/Quarantine | Met incapacitated Sigix Warrior 11762 | -3/Quarantine | Lockdown squad dispatched 11763 | -3/Quarantine | Acquired the access code to the Sigix quarantine chamber 11765 | -3/Quarantine | Unlocked Sigix quarantine chamber 11814 | -3/Quarantine | Spotted Lightning 11868 | -3/Quarantine | Found Alien Artifact 11884 | -3/Quarantine | Spotted Alpha 7 11898 | -3/Quarantine | Found Alien Launcher 11924 | -3/Quarantine | Identified Sigix Terminator 11947 | -3/Quarantine | Identified Core Reset Matrix 11947 | -3/Quarantine | Identified Phase Redirector 12046 | -3/Quarantine | Found Alien Impact Weapon 12065 | -3/Quarantine | Found Alien Artifact 12096 | -3/Quarantine | Found Alien Artifact 12099 | -3/Quarantine | Found Alien Artifact 12134 | -3/Quarantine | Identified Core Stripper 12258 | -3/Quarantine | Discovered exit to Research (range 5) 12262 | -3/Quarantine | Entered Research 12262 | -2/Research | Evolved 2 slots: Power x1, Propulsion x1 12426 | -2/Research | Identified Transdimensional Reconstructor (x2) 12426 | -2/Research | Identified Terrabomb 12495 | -2/Research | Discovered new exit (range 13) 12576 | -2/Research | Build established: Hauler-Scout 12611 | -2/Research | Found Prototype Device 12611 | -2/Research | Identified Adv. Kinecellerator 12657 | -2/Research | Found Prototype Device 12657 | -2/Research | Identified Exp. Shock Absorption System 12781 | -2/Research | Identified exit to Testing 12845 | -2/Research | Entered Testing 12861 | -2/Testing | Found Prototype Hackware 12879 | -2/Testing | Protovariant out of control (PD-LEPV6MNGYM) 12879 | -2/Testing | Unleashed a protovariant (PD-LEPV6MNGYM) 12912 | -2/Testing | Identified System Mapper 13062 | -2/Testing | Discovered new exit (range 16) 13079 | -2/Testing | Identified exit to Access 13316 | -2/Testing | Garrison activated, responded to threat 13401 | -2/Testing | Lost 3 parts (1p1n1w) 13428 | -2/Testing | Found Prototype Energy Cannon 13428 | -2/Testing | Identified Null Cannon 13509 | -2/Testing | Found Prototype Launcher 13509 | -2/Testing | Identified Point Singularity Launcher 13575 | -2/Testing | Found Prototype Device 13575 | -2/Testing | Identified Exp. Thermal Shield 13640 | -2/Testing | Build established: Hauler-Mutant 13647 | -2/Testing | System corruption reached 10% 13798 | -2/Testing | Found Portable AFG 13855 | -2/Testing | Found Prototype Device 13855 | -2/Testing | Identified Imp. Particle Accelerator 14098 | -2/Testing | Spotted Fortress 14107 | -2/Testing | Destroyed Fortress 14121 | -2/Testing | Found Prototype Device 14121 | -2/Testing | Identified Thermal Barrier 14124 | -2/Testing | Found Prototype Device 14124 | -2/Testing | Identified Exp. Force Field 14130 | -2/Testing | Found Prototype Reactor 14130 | -2/Testing | Identified Vortex Chain Reactor 14134 | -2/Testing | Found Prototype Device 14134 | -2/Testing | Identified Exp. EM Disruption Field 14141 | -2/Testing | Found Prototype Protection 14268 | -2/Testing | Discovered new exit (range 5) 14273 | -2/Testing | Identified exit to Section 7 14274 | -2/Testing | Entered Section 7 14379 | -2/Section 7 | Found Alien Artifact 14379 | -2/Section 7 | Identified Integrated Reactor 14379 | -2/Section 7 | Installed Integrated Reactor, increased core energy generation (+10) 14560 | -2/Section 7 | Found Integrated Reactor 14560 | -2/Section 7 | Installed Integrated Reactor, increased core energy generation (+10) 14791 | -2/Section 7 | Found Alien Artifact 14791 | -2/Section 7 | Identified Integrated Dissipator 14791 | -2/Section 7 | Installed Integrated Dissipator, increased core heat dissipation (+20) 14794 | -2/Section 7 | Identified Centrium Heavy Armor Plating 14821 | -2/Section 7 | Spotted S7 Guard 14850 | -2/Section 7 | Spotted Alpha 7 14853 | -2/Section 7 | Destroyed S7 Guard 14925 | -2/Section 7 | Destroyed Alpha 7 14994 | -2/Section 7 | Spotted Alpha 7 14999 | -2/Section 7 | Destroyed Alpha 7 15080 | -2/Section 7 | Found Exp. Targeting Computer 15087 | -2/Section 7 | Found Antimissile System 15093 | -2/Section 7 | Found Prototype Processor 15187 | -2/Section 7 | Found Exp. Targeting Computer 15195 | -2/Section 7 | Found Prototype Processor 15200 | -2/Section 7 | Found Prototype Device 15200 | -2/Section 7 | Identified Exp. ECM Suite 15251 | -2/Section 7 | Found Alien Energy Cannon 15251 | -2/Section 7 | Identified Sigix Shearcannon 15274 | -2/Section 7 | First assault squad dispatched 15371 | -2/Section 7 | Spotted B-99 Colossus 15420 | -2/Section 7 | Destroyed B-99 Colossus 15498 | -2/Section 7 | Found Alien Artifact 15498 | -2/Section 7 | Identified Integrity Redistributor 15498 | -2/Section 7 | Used Integrity Redistributor, redistributed integrity from core (-402) 15499 | -2/Section 7 | Core integrity fell below 50% 15556 | -2/Section 7 | Found Alien Artifact 15556 | -2/Section 7 | Identified LRC Matter Compressor 15556 | -2/Section 7 | Installed LRC Matter Compressor, increased matter storage capacity (+125) 15613 | -2/Section 7 | Found Integrated Reactor 15613 | -2/Section 7 | Installed Integrated Reactor, increased core energy generation (+10) 15616 | -2/Section 7 | Found Integrated Reactor 15616 | -2/Section 7 | Installed Integrated Reactor, increased core energy generation (+10) 15619 | -2/Section 7 | Found Integrated Reactor 15619 | -2/Section 7 | Installed Integrated Reactor, increased core energy generation (+10) 15776 | -2/Section 7 | Spotted Executioner 15778 | -2/Section 7 | Spotted Executioner 15782 | -2/Section 7 | Destroyed Executioner 15791 | -2/Section 7 | Destroyed Executioner 15851 | -2/Section 7 | Spotted Striker 15868 | -2/Section 7 | Found Sigix Shearcannon 16044 | -2/Section 7 | Used Core Reset Matrix 16048 | -2/Section 7 | Sensed 12 artifacts in vicinity 16080 | -2/Section 7 | Integrated with Sigix Exoskeleton 16081 | -2/Section 7 | Sigix Warrior commented on Exoskeleton integration 16115 | -2/Section 7 | Found Prototype Processor 16125 | -2/Section 7 | Spotted Striker 16125 | -2/Section 7 | Spotted Striker 16143 | -2/Section 7 | Found Transdimensional Reconstructor 16144 | -2/Section 7 | Found Transdimensional Reconstructor 16148 | -2/Section 7 | Found Terrabomb 16149 | -2/Section 7 | Found Terrabomb 16223 | -2/Section 7 | Discovered exit to Access (range 18) 16223 | -2/Section 7 | Found Integrity Redistributor 16235 | -2/Section 7 | Entered Access 16235 | -1/Access | Evolved 2 slots: Weapon x2 16240 | -1/Access | Emitted hypermatrix ping 16245 | -1/Access | Assembled emerged from beneath the floor 16376 | -1/Access | Build established: Alien-Sigix 16386 | -1/Access | Discovered new exit (range 17) 16399 | -1/Access | Entered Command 16404 | -1/Command | Emitted hypermatrix ping 16409 | -1/Command | Assembled emerged from beneath the floor 16414 | -1/Command | Used Subatomic Replicator to replicate Sigix Containment Pod 16686 | -1/Command | Disengaged cave seal 16706 | -1/Command | High security lockdown imminent 16732 | -1/Command | Disengaged cave seal 16734 | -1/Command | Destroyed 9 combat bots 16756 | -1/Command | Spotted M Guard 16757 | -1/Command | Spotted M Guard 16761 | -1/Command | Spotted Combat Programmer 16770 | -1/Command | Spotted Combat Programmer 16774 | -1/Command | Destroyed Combat Programmer 16780 | -1/Command | Destroyed Combat Programmer 16783 | -1/Command | Destroyed M Guard 16786 | -1/Command | High security lockdown engaged 16789 | -1/Command | Destroyed M Guard 16789 | -1/Command | All MAIN.C guards destroyed 16794 | -1/Command | Found Prototype Processor 16794 | -1/Command | Identified Exp. Targeting Computer 16799 | -1/Command | Used Terrabomb 16807 | -1/Command | Met MAIN.C 16812 | -1/Command | 0b10 Conduit disabled 16824 | -1/Command | MAIN.C's shell transforms into a squad of autonomous robots 16824 | -1/Command | Destroyed MAIN.C Shell 16824 | -1/Command | Spotted M Shell/Def 16824 | -1/Command | Spotted M Shell/Atk 16824 | -1/Command | Spotted M Shell/Def 16824 | -1/Command | Spotted M Shell/Atk 16824 | -1/Command | Spotted M Shell/Atk 16824 | -1/Command | Spotted M Shell/Def 16824 | -1/Command | Spotted M Shell/Atk 16824 | -1/Command | Spotted M Shell/Def 16827 | -1/Command | MAIN.C activated Command garrisons 16828 | -1/Command | Destroyed M Shell/Def 16829 | -1/Command | Sigix Exoskeleton integrity reduced to 80% 16834 | -1/Command | Destroyed M Shell/Atk 16834 | -1/Command | Destroyed M Shell/Def 16838 | -1/Command | Destroyed MAIN.C 16841 | -1/Command | Destroyed M Shell/Atk 16845 | -1/Command | Destroyed M Shell/Atk 16848 | -1/Command | Destroyed M Shell/Atk 16849 | -1/Command | Sigix Exoskeleton integrity reduced to 60% 16852 | -1/Command | Discovered new exit (range 44) 16852 | -1/Command | Discovered new exit (range 89) 16852 | -1/Command | Extracted map data and part IDs from MAIN.C's data core 16888 | -1/Command | Destroyed 9 combat bots 17335 | -1/Command | Assembled emerged from beneath the floor 17400 | -1/Command | Assembled emerged from beneath the floor 17437 | -1/Command | Assembled emerged from beneath the floor 17547 | -1/Command | Found Exp. Core Analyzer 17573 | -1/Command | Assembled emerged from beneath the floor 17652 | -1/Command | Crushed by falling debris 17695 | -1/Command | Found Adv. Micro-nuke Launcher 17925 | -1/Command | Warped through subspace to slip node 17925 | -1/Command | Discovered new exit (range 5) 17929 | -1/Command | Entered Access_0 17930 | -1/Access_0 | Sensed 4 artifacts in vicinity 17930 | -1/Access_0 | Met Architect 17931 | -1/Access_0 | Destroyed A8 17932 | -1/Access_0 | Architect warped through subspace 17950 | -1/Access_0 | Subspace Access Node disabled 17968 | -1/Access_0 | Found Core Expander 17968 | -1/Access_0 | Installed Core Expander, added new Power slot 17974 | -1/Access_0 | Architect warped through subspace 17985 | -1/Access_0 | Subspace Access Node disabled 17997 | -1/Access_0 | A6 warped into view 18002 | -1/Access_0 | Core integrity fell below 50% 18006 | -1/Access_0 | Destroyed A6 18055 | -1/Access_0 | Architect warped through subspace 18080 | -1/Access_0 | Architect warped through subspace 18088 | -1/Access_0 | Subspace Access Node disabled 18104 | -1/Access_0 | Architect warped through subspace 18115 | -1/Access_0 | Architect warped through subspace 18120 | -1/Access_0 | A5 warped into view 18129 | -1/Access_0 | Destroyed A5 18135 | -1/Access_0 | Architect warped through subspace 18141 | -1/Access_0 | Found Integrity Redistributor 18144 | -1/Access_0 | Subspace Access Node disabled 18199 | -1/Access_0 | Destroyed A2 18202 | -1/Access_0 | Extracted Singularity Gate Test 138-C access codes from A2's data core 18214 | -1/Access_0 | A4 warped into view 18228 | -1/Access_0 | Sigix Exoskeleton integrity reduced to 40% 18228 | -1/Access_0 | Destroyed A4 18229 | -1/Access_0 | Core integrity fell below 20% 18235 | -1/Access_0 | Destroyed Architect 18236 | -1/Access_0 | Architect triggered a singularity event 18238 | -1/Access_0 | Extracted unknown sensor trigger ID from Architect's data core 18243 | -1/Access_0 | Singularity Gate disabled 18347 | -1/Access_0 | Found Hpw. Transdimensional Reconstructor 18414 | -1/Access_0 | Found Sigix Corpse 18415 | -1/Access_0 | Warped through subspace to slip node 18415 | -1/Access_0 | Discovered new exit (range 8) 18419 | *** | Destroyed 0B10! Last Messages --------------- 18380_ Quantum Shear penetrates Enhanced Hunter. 18380_ Enhanced Hunter destroyed. 18380_ Quantum Shear penetrates Earth. 18380_ Quantum Shear penetrates Wall. 18388_ Quantum Shear penetrates Enhanced Sentry. 18388_ Enhanced Sentry destroyed. 18388_ Quantum Shear penetrates Earth. 18389_ DL1JX%QJJR MED 6 >CSYMYKGKSI 4| 18391_ Acquired 9 matter. 18409_ Quantum Shear penetrates Analysis Chamber. 18409_ Analysis Chamber breached. 18409_ Quantum Shear penetrates Analysis Chamber. 18409_ Quantum Shear penetrates Wall. 18409_ Quantum Shear penetrates Earth. 18410_ System corrupted: Component data lost. 18413_ Dropped Hpw. Transdimensional Reconstructor. 18414_ Acquired Sigix Corpse. 18415_ Acquired Hpw. Transdimensional Reconstructor. 18415_ Warped through subspace, drawn to slip node. 18415_ EXIT=FOUND Map ----- +----------------------------------------------------+ | | | | | | | | | | | | | | | | | | | | | | | | | | | | | | | | | ???????????#############################?????????? | | ??????????###############################????????? | | ?????????#################################???????? | | ?????????#################################???????? | | ?????????#################################???????? | | ????????###################################??????? | | ????????###################################??????? | | ????????################# #################??????? | | ????????################ ################??????? | | ????????################ X ################??????? | | ???????################# #################?????? | | ???????################ ################??????? | | ???????################ #################??????? | | ???????################# ################??????? | | ???????################ #################?????? | | ??????################# #################??????? | | ??????################# < ################??????? | | ???????################ #################??????? | | ???????################# #################??????? | | ???????####################################??????? | | ???????###################################???????? | | ???????###################################???????? | | ????????##################################???????? | | ????????#################################????????? | | ????????#################################????????? | | ?????????###############################?????????? | | ??????????#############################??????????? | | ??????????#############################??????????? | | ???????????################################??????? | | ????????????##################################???? | | ?????????????##################################??? | | ???????????????##################################? | | ????????????????################################## | | ???????????????????############################### | +----------------------------------------------------+ Best States ------------- Heat Dissipation 242 Energy Generation 121 Energy Capacity 700 Matter Stores 425 Matter Capacity 425 Sight Range 16 Robot Scan Range 20 Terrain Scan Range 16 Terrain Scan Density 1210 Jamming Range 16 Cloak Strength 3 Additional Mass Support 9 EM Shielding 4 Armor Coverage 1200 Resistance: KI 50 Resistance: TH 50 Resistance: EX 50 Resistance: EM 75 Resistance: I 50 Resistance: S 50 Resistance: P 50 Weapon Shielding 90 Phase Shifting 15 Evasion (%) 84 Targeting Accuracy 16 Launcher Accuracy 30 Target Analysis 8 Core Analysis 8 Armor Integrity Analysis 40 Recoil Reduction 4 Particle Charging 40 Kinecelleration 40 Offensive Hacking 20 Defensive Hacking 30 Relay Coupler Types 1 Relay Coupler Value 31 Authchip Count 2 Item Schematics ----------------- None Robot Schematics ------------------ None Fabricated ------------ Nothing Alien Tech Used ----------------- Subatomic Replicator Sigix Terminator Core Stripper Integrated Reactor Integrated Dissipator Sigix Shearcannon Integrity Redistributor LRC Matter Compressor Core Reset Matrix Sigix Exoskeleton Sigix Sheargun Terrabomb Transdimensional Reconstructor Core Expander High-powered Transdimensional Reconstructor Achievements -------------- Rampage Challenges ------------ None Game ------ Seed LinearAdvancedSteel Manual? 1 Play Time 06:21:21 Cumulative 277.9 hours Start 2022.04.26 @ 15:46:28 End 2022.05.01 @ 00:42:15 Sessions 9 Manual Loads 0 Difficulty Rogue Special Mode None Game No. 137 Rogue 133 Adventurer 0 Explorer 4 Win Type 3 Total 16 Types 4/0/2/4/1/2/3/0/0 Lore% 77 Gallery% 82 Achievement% 74 Wizard Run 0 Options --------- ASCII 0 Keyboard 0 Movement Mouse Keybinds 0 Fullscreen 1 Font 18/SmallcapsGlow Map View 76x50 Tactical HUD 1 Map Filters NONE Filters NONE Steam 1 RUN: 42f02469-8ed1-4d1f-9ec0-176d12783119